{"text_format":"1","workbook":"xlsx","n_sheets":2,"sheets":["Proyecto_I","Conf"],"not_rendered":{"charts":0,"images":0,"macros":1,"external_links":0,"defined_names":10,"comments":0,"pivot_tables":0},"unopened":[],"bounds":{"document_bytes":16777216,"sheet_cells":100000,"rows_first":2000,"rows_last":500,"rows_between":2000,"halvings":0,"cell_chars":16384,"cell_head_chars":4096},"cells_cut":0,"cells_raw":0,"read":"whole","date_system":"1900"}

{"sheet":"Proyecto_I","index":0,"n_rows":2277,"n_cols":21,"rows_kept":2277,"cut":false,"hidden":false,"merged":[[0,0,1,0],[0,1,1,1],[0,2,1,2],[0,3,1,3],[0,4,1,4],[0,5,1,5],[0,6,1,6],[0,7,1,7],[0,8,1,8],[0,9,1,9],[0,10,1,10],[0,11,1,11],[0,12,1,12],[0,21,1048575,21],[0,13,1,13],[0,17,1,17],[0,18,1,18],[0,14,0,16],[0,20,1,20],[0,19,1,19]]}
["No.","CODIGO","MODALIDAD","FACULTAD","GRUPO","NOMBRE DEL PROYECTO","FICHA INICIO","FICHA FINAL","DURACIÓN","ESTADO","DOCENTE","VINCULO CON LA USCO","CORREO ELECTRONICO","TELEFONO","NUMERO DE PARTICIPANTES",null,null,"REGISTADO EN  SIVIPS","No. ACTA APROBACIÓN","TIPO PROYECTO","$ USCO"]
[null,null,null,null,null,null,null,null,null,null,null,null,null,null,"ESTUDIANTES","DOCENTES","EGRESADOS"]
[1,2197,"TRABAJOS DE GRADO","CIENCIAS EXACTAS Y NATURALES","FISICA TEORICA","CÁLCULO DE LA REACTIVIDAD DETERMINÍSTICA EN REACTORES NUCLEARES","2017-02-10","2018-03-30",{"$f":"IF(G3=\"\",\"\",IF(G3=\"C\",\"\",(ROUND(DAYS360(G3,H3,1)/30,0)&\" MESES\")))","v":"14 MESES"},{"$f":"IF(G3=\"\",\"\",IF(H3=\"NO\",\"SIN FECHA\",IF(H3=\"\",\"SIN FECHA\",IF(TODAY()>H3,\"FINALIZADO\",IF(G3=\"C\",\"NO SE EJECUTA\",IF(G3<=TODAY(),\"VIGENTE\",\"SIN INICIAR\"))))))","v":"FINALIZADO"},"DANIEL SUESCÚN DÍAZ","EGRESADO",null,null,null,null,null,"SI","Acta 2 del 26 de enero de 2017","INVESTIGACION",2800000]
[2,2213,"TRABAJOS DE GRADO","CIENCIAS EXACTAS Y NATURALES","FISICA TEORICA","ESTUDIO DE PROPIEDADES ELECTRÓNICAS DE LA CALCOPIRITA CU?IN?_(1-X) ?AL?_X ?TE?_2","2017-02-10","2018-03-30",{"$f":"IF(G4=\"\",\"\",IF(G4=\"C\",\"\",(ROUND(DAYS360(G4,H4,1)/30,0)&\" MESES\")))","v":"14 MESES"},"FINALIZADO","DIEGO RASERO CAUSIL",null,null,null,null,null,null,"SI","Acta 2 del 26 de enero de 2018","INVESTIGACION",2800000]
[3,2228,"TRABAJOS DE GRADO","CIENCIAS JURIDICAS Y POLITICAS","REGION Y POLITICA","IMAGINARIOS SOBRE LOS ACUERDO DE PAZ DE VÍCTIMAS DEL CONFLICTO ARMADO EN ZONAS RURALES Y URBANAS DE NEIVA 2016.","2017-02-10","2018-03-30","14 MESES",{"$f":"IF(G5=\"\",\"\",IF(H5=\"NO\",\"SIN FECHA\",IF(H5=\"\",\"SIN FECHA\",IF(TODAY()>H5,\"FINALIZADO\",IF(G5=\"C\",\"NO SE EJECUTA\",IF(G5<=TODAY(),\"VIGENTE\",\"SIN INICIAR\"))))))","v":"FINALIZADO"},"STEFANY CASTAÑO",null,null,null,null,null,null,"SI","Acta 2 del 26 de enero de 2019","INVESTIGACION",2800000]
[4,2255,"TRABAJOS DE GRADO","CIENCIAS JURIDICAS Y POLITICAS","REGION Y POLITICA","INFLUENCIA DE LOS MEDIOS MASIVOS DE INFORMACIÓN EN LA CONFIGURACIÓN DE IMAGINARIOS DE PAZ EN LA REGIÓN SURCOLOMBIANA","2017-02-10","2018-03-30","14 MESES","FINALIZADO","CRISTIAN MAURICIO LONDOÑO",null,null,null,null,null,null,"SI","Acta 2 del 26 de enero de 2020","INVESTIGACION",2800000]
[5,2624,"TRABAJOS DE GRADO","CIENCIAS SOCIALES Y HUMANAS","CRECER","GEOPOLÍTICA DE LAS EMOCIONES EN TRAMAS NARRATIVAS DE PAZ DE MAESTR@S DE LA INSTITUCION EDUCATIVA SALEN EN ISNOS HUILA ","2017-02-10","2018-03-30","14 MESES","FINALIZADO","MYRIAM OVIEDO","DOCENTE DE TIEMPO COMPLETO","miriamorcito@usco.edu.co",null,null,null,null,"SI","Acta 2 del 26 de enero de 2021","INVESTIGACION",2800000]
[6,2625,"TRABAJOS DE GRADO","CIENCIAS SOCIALES Y HUMANAS","CRECER","“GEOPOLÍTICA DE LAS EMOCIONES EN TRAMAS NARRATIVAS DE PAZ DE MAESTR@S DE LA INSTITUCION  EDUCATIVA EN BRUSELAS HUILA","2017-02-10","2018-03-30","14 MESES","FINALIZADO","MYRIAM OVIEDO",null,null,null,null,null,null,"SI","Acta 2 del 26 de enero de 2022","INVESTIGACION",2800000]
[7,2253,"TRABAJOS DE GRADO","SALUD","DESARROLLO DE NEUROCIENCIAS EN PSICOLOGÍA - DNEUROPSY","RELACION ENTRE ACOSO ESCOLAR Y EL DESARROLLO DE FUNCIONES EJECUTIVAS EN NIÑOS DE BÁSICA PRIMARIA SEDES DE LA INSTITUCIÓN","2017-02-10","2018-03-30","14 MESES","FINALIZADO","ALFREDIS GONZÁLES HERNÁNDEZ",null,null,null,null,null,null,"SI","Acta 2 del 26 de enero de 2023","INVESTIGACION",2800000]
[8,2218,"TRABAJOS DE GRADO","SALUD","CUIDAR","CAPACIDAD DE AUTOCUIDADO DE LAS PERSONAS CON INSUFICIENCIA RENAL CRÓNICA EN TERAPIA DE REMPLAZO RENAL, FLORENCIA 2017","2017-02-10","2018-03-30","14 MESES","FINALIZADO","CLAUDIA PATRICIA CATILLO",null,null,null,null,null,null,"SI","Acta 2 del 26 de enero de 2024","INVESTIGACION",2800000]
[9,2193,"TRABAJOS DE GRADO","SALUD","CUIDAR","FACTORES QUE AFECTAN LA ADHERENCIA A LA REHABILITACIÓN CARDIOPULMONAR DE LOS PACIENTES ATENDIDOS EN LA UNIDAD CARDIOVASCULAR DEL HUHMP DURANTE EN EL SEGUNDO SEMESTRE DEL AÑO 2016.","2017-02-10","2018-03-30","14 MESES","FINALIZADO","LUZ OMAIRA GÓMEZ TOVAR",null,null,null,null,null,null,"SI","Acta 2 del 26 de enero de 2025","INVESTIGACION",2800000]
[10,2172,"TRABAJOS DE GRADO","SALUD","CLINICA DEL BUEN TRABAJO","CONOCIMIENTOS Y ATENCIÓN QUE TIENE EL PERSONAL DE SALUD CON LOS NIÑOS Y NIÑAS QUE CONSULTAN POR VIOLENCIA EN EL SERVICIO DE URGENCIAS PEDIÁTRICAS DEL HUHMP NEIVA","2017-02-10","2018-03-30","14 MESES","FINALIZADO","FRANCY HOLMIN SALAS",null,null,null,null,null,null,"SI","Acta 2 del 26 de enero de 2026","INVESTIGACION",2800000]
[11,2188,"TRABAJOS DE GRADO","SALUD","PARASITOLOGIA Y MEDICINA TROPICAL","PREVALENCIA DE CHAGAS CONGENITO. NEIVA, JULIO A DICIEMBRE DE 2015","C","2018-03-30","","FINALIZADO","DORIS MARTHA SALGADO",null,null,null,null,null,null,"SI","Acta 2 del 26 de enero de 2027","INVESTIGACION",2800000]
[12,2626,"TRABAJOS DE GRADO","CIENCIAS SOCIALES Y HUMANAS","PSICOLOGIA POSITIVA","CALIDAD DE VIDA EN EL TRABAJO EN DOCENTES DE LA UNIVERSIDAD SURCOLOMBIANA SEDE NEIVA – HUILA","C","2018-03-30","","FINALIZADO","WILLIAN SIERRA BARÓN",null,null,null,null,null,null,"SI","Acta 2 del 26 de enero de 2028","INVESTIGACION",2800000]
[13,2627,"TRABAJOS DE GRADO","CIENCIAS SOCIALES Y HUMANAS","PSICOLOGIA POSITIVA","PROCESOS DE INCLUSION DE UNA MUJER Y UN HOMBRE MESTIZOS EN LA COMUNIDAD INDIGENA INGA Y KAMENISA UBICADOS EN EL VALLE DE SIBUNDOY","2017-02-10","2018-03-30","14 MESES","FINALIZADO","JULIÁN ALBERTO VANEGAS",null,null,null,null,null,null,"SI","Acta 2 del 26 de enero de 2029","INVESTIGACION",2800000]
[14,2245,"TRABAJOS DE GRADO","SALUD","NEURORED","RIESGO DE TRASTORNOS DE LA CONDUCTA ALIMENTARIA (RTCA) RELACIONADO CON LA IMAGEN CORPORAL EN ESTUDIANTES DE PREGRADO MAYORES DE 18 AÑOS DE LA UNIVERSIDAD SURCOLOMBIANA DE NEIVA EN EL SEGUNDO PERIODO DEL AÑO 2016","2017-02-10","2018-03-30","14 MESES","FINALIZADO","LINA MARIA SANCHEZ PIEDRAHITA",null,null,null,null,null,null,"SI","Acta 2 del 26 de enero de 2030","INVESTIGACION",2800000]
[15,2674,"TRABAJOS DE GRADO","CIENCIAS SOCIALES Y HUMANAS","CRECER","CARACTERIZACIÓN DE VIOLENCIA HACIA LAS MUJERES EN LA RELACIÓN DE PAREJA EN LOS MUNICIPIOS DE ALGECIRAS Y LA PLATA","2017-02-10","2018-03-30","14 MESES","FINALIZADO","MYRIAM OVIEDO",null,null,null,null,null,null,"SI","Acta 2 del 26 de enero de 2031","INVESTIGACION",2800000]
[16,2246,"TRABAJOS DE GRADO","INGENIERIA","NUEVAS TECNOLOGIAS","DISEÑO E IMPLEMENTACIÓN DE UN SISTEMA DE CONTROL DE NIVEL Y FLUJO EN TANQUES ACOPLADOS USANDO CONTROL MULTIVARIABLE  POR MÉTODOS CLÁSICOS.","2017-02-10","2018-03-30","14 MESES","FINALIZADO","AGUSTIN SOTO OTALORA",null,null,3133455687,null,null,null,"SI","Acta 2 del 26 de enero de 2032","INVESTIGACION",2800000]
[17,2234,"TRABAJOS DE GRADO","CIENCIAS EXACTAS Y NATURALES","TECNOLOGIA VIRTUALES","ESTUDIO DE VIABILIDAD DE APERTURA DEL PROGRAMA DE MATEMATICA APLICADA DE LA UNIVERSIDAD SURCOLOMBIANA EN LA SEDE PITALITO","2017-03-17","2018-03-30","12 MESES","FINALIZADO","JAIME POLONIA PERDOMO",null,null,null,null,null,null,"SI","Acta 2 del 26 de enero de 2033","INVESTIGACION",2800000]
[18,2203,"TRABAJOS DE GRADO","SALUD","PARASITOLOGIA Y MEDICINA TROPICAL","NIVELES DE IL-17 EN LAVADO BRONCO ALVEOLAR DE PACIENTES CON SINTOMATOLOGÍA PULMONAR CRÓNICA Y SU ASOCIACIÓN CON","2017-02-10","2018-03-30","14 MESES","FINALIZADO","CARLOS FERNANDO NARVÁEZ",null,null,null,null,null,null,"SI","Acta 2 del 26 de enero de 2034","INVESTIGACION",2800000]
[19,2631,"TRABAJOS DE GRADO","SALUD","PARASITOLOGIA Y MEDICINA TROPICAL","INTERLEUQUINA (IL)-6: UTILIDAD EN LA APROXIMACIÓN DIAGNOSTICA DE SEPSIS NEONATAL","2017-02-10","2018-03-30","14 MESES","FINALIZADO","CARLOS FERNANDO NARVÁEZ",null,null,null,null,null,null,"SI","Acta 2 del 26 de enero de 2035","INVESTIGACION",2800000]
[20,2633,"TRABAJOS DE GRADO","SALUD","PARASITOLOGIA Y MEDICINA TROPICAL","VALOR DIAGNÓSTICO DEL EJE ST2-IL-33 LOCALMENTE SECRETADOS EN PACIENTES CON PATOLOGÍAS PULMONARES NO ALÉRGICAS.","C","2018-03-30","","FINALIZADO","CARLOS FERNANDO NARVÁEZ",null,null,null,null,null,null,"SI","Acta 2 del 26 de enero de 2036","INVESTIGACION",2800000]
[21,2242,"TRABAJOS DE GRADO","EDUCACION","MOLUFODE","TIEMPO LIBRE: UNA FUENTE DE VIDA EN LA EDUCACIÓN","2017-02-10","2018-03-30","14 MESES","FINALIZADO","ANGEL MILLER ROA CRUZ",null,null,null,null,null,null,"SI","Acta 2 del 26 de enero de 2037","INVESTIGACION",2800000]
[22,2200,"SEMILLERO","ECONOMIA Y ADMINISTRACION"," EXPORTA","PRESELECCION DE MERCADOS INTERNACIONALES PARA LOS CAFÉS ESPECIALES DEL DEPARTAMENTO DEL HUILA 2016","2017-02-10","2018-03-30","14 MESES","FINALIZADO","JOSÉ JARDANI GIRALDO URIBE",null,null,null,null,null,null,"SI","Acta 2 del 26 de enero de 2038","INVESTIGACION",2000000]
[23,2179,"SEMILLERO","ECONOMIA Y ADMINISTRACION","IGUAQUE","DETERMINANTES QUE HACEN QUE LAS CIUDADES DE COLOMBIA PRESENTE MEDIO, BAJO Y MUY BAJO ÍNDICE DE CALIDAD AMBIENTAL URBANA","2017-02-10","2018-03-30","14 MESES","FINALIZADO","OSCAR CERQUERA LOSADA",null,null,null,null,null,null,"SI","Acta 2 del 26 de enero de 2039","INVESTIGACION",2000000]
[24,2642,"SEMILLERO","ECONOMIA Y ADMINISTRACION","IGUAQUE","RELACIÓN ENTRE EL CONFLICTO ARMADO Y LA PRODUCCIÓN AGRARIA: CASO DEPARTAMENTO DEL HUILA","2017-02-10","2018-03-30","14 MESES","FINALIZADO","OSCAR CERQUERA LOSADA",null,null,null,null,null,null,"SI","Acta 2 del 26 de enero de 2040","INVESTIGACION",2000000]
[25,2236,"SEMILLERO","ECONOMIA Y ADMINISTRACION","PYMES","MARKETING RELACIONAL EN LAS PANADERÍAS ESTRATO 2 Y 3 DE LA CIUDAD DE NEIVA.","2017-02-10","2018-03-30","14 MESES","FINALIZADO","ELÍAS RAMÍREZ PLAZAS",null,null,null,null,null,null,"SI","Acta 2 del 26 de enero de 2041","INVESTIGACION",2000000]
[26,2671,"SEMILLERO","CIENCIAS SOCIALES Y HUMANAS","COMUNICACIÓN MEMORIA Y REGION","CARACTERIZACION DE LOS PROCESOS COMUNICATIVOS QUE HAN IMPLEMENTADO LAS ORGANIZACIONES MAS REPRESENTATIVAS DE PITALITO, ANTE LA LLEGADA DE ORGANIZACIONES NACIONALES E INTERNACIONALES DESDE 1996 HASTA EL 2016","2017-02-10","2018-03-30","14 MESES","FINALIZADO","CINDY ALEXANDRA GUISA ROJAS",null,null,null,null,null,null,"SI","Acta 2 del 26 de enero de 2042","INVESTIGACION",2000000]
[27,2231,"SEMILLERO","CIENCIAS JURIDICAS Y POLITICAS","CONCIENCIA JURÍDICA","ANALISIS DE LA LEY 1788 DE 2016 EN NEIVA","2017-02-10","2018-03-30","14 MESES","FINALIZADO","DIANA MARCELA RINCÓN ANDREDE",null,null,null,null,null,null,"SI","Acta 2 del 26 de enero de 2043","INVESTIGACION",2000000]
[28,2252,"SEMILLERO","SALUD","CUIDAR","FACTORES QUE INFLUYEN EN LA HOSPITALIZACIÓN Y EN LA ADHERENCIA AL TRATAMIENTO FARMACOLÓGICO Y NO FARMACOLÓGICO EN LOS PACIENTES CON HIPERTENSIÓN Y DIABETES MELLITUS.","2017-02-10","2018-03-30","14 MESES","FINALIZADO","LUZ OMAIRA GÓMEZ",null,null,null,null,null,null,"SI","Acta 2 del 26 de enero de 2044","INVESTIGACION",2000000]
[29,2215,"SEMILLERO","CIENCIAS JURIDICAS Y POLITICAS","CYNERGIA","CONTRATO DE APARCERÍA COMO UNA ALTERNATIVA PARA EL SECTOR AGRÍCOLA EN COLOMBIA DEL POSCONFLICTO","2017-02-10","2018-03-30","14 MESES","FINALIZADO","DIANA MARCELA ORTIZ TOVAR",null,null,null,null,null,null,"SI","Acta 2 del 26 de enero de 2045","INVESTIGACION",2000000]
[30,2656,"SEMILLERO","CIENCIAS JURIDICAS Y POLITICAS","CYNERGIA","INSOLVENCIA  DE PERSONA NATURAL NO COMERCIANTE ","2017-02-10","2018-03-30","14 MESES","FINALIZADO","ANDRÉS GÓMEZ PERDOMO",null,null,null,null,null,null,"SI","Acta 2 del 26 de enero de 2046","INVESTIGACION",2000000]
[31,2658,"SEMILLERO","CIENCIAS JURIDICAS Y POLITICAS","CYNERGIA","LA SOSTENIBILIDAD FISCAL EN EL POSCONFLICTO EN COLOMBIA ","2017-02-10","2018-03-30","14 MESES","FINALIZADO","DIANA MARCELA ORTIZ TOVAR",null,null,null,null,null,null,"SI","Acta 2 del 26 de enero de 2047","INVESTIGACION",2000000]
[32,2655,"SEMILLERO","CIENCIAS JURIDICAS Y POLITICAS","CYNERGIA","NIÑOS, NIÑAS Y ADOLESCENTES EN EL POSTCONFLICTO, UN ESTUDIO DESDE EL DERECHO COMPARADO.","2017-02-10","2018-03-30","14 MESES","FINALIZADO","NATALIA MARÍA BORRAS",null,null,null,null,null,null,"SI","Acta 2 del 26 de enero de 2048","INVESTIGACION",2000000]
[33,2260,"SEMILLERO","CIENCIAS EXACTAS Y NATURALES","EMATH","APRENDIENDO A ESTUDIAR LAS CLASES EN EL CLUB DE APOYO MATEMÁTICO DEL HUILA CAMATH","2017-02-10","2018-03-30","14 MESES","FINALIZADO","MARTHA CECILIA MOSQUERA URRUTIA",null,null,null,null,null,null,"SI","Acta 2 del 26 de enero de 2049","INVESTIGACION",2000000]
[34,2219,"SEMILLERO","CIENCIAS EXACTAS Y NATURALES","EMATH","TAREAS MATEMÁTICAS PARA EL DESARROLLO DE COMPETENCIAS MATEMÁTICAS EN ESTUDIANTES DE EDUCACIÓN BÁSICA SECUNDARIA Y MEDIA","2017-02-10","2018-03-30","14 MESES","FINALIZADO","JHONNY FERNANDO ALVIS PUENTES",null,null,null,null,null,null,"SI","Acta 2 del 26 de enero de 2050","INVESTIGACION",2000000]
[35,2226,"SEMILLERO","ECONOMIA Y ADMINISTRACION","ENSISUR","FACTORES DETERMINANTES DEL FRACASO EMPRESARIAL DE LAS MICROEMPRESAS DEL MUNICIPIO DE PITALITO","2017-02-10","2018-03-30","14 MESES","FINALIZADO","SERGIO ALEXANDER SANTOS SANCHEZ",null,null,null,null,null,null,"SI","Acta 2 del 26 de enero de 2051","INVESTIGACION",2000000]
[36,2660,"SEMILLERO","ECONOMIA Y ADMINISTRACION","ENSISUR","PRACTICAS GERENCIALES EN EL PROCESO DE VINCULACIÓN DEL PERSONAL EN EL SECTOR HOTELERO DEL MUNICIPIO DE PITALITO","2017-02-10","2018-03-30","14 MESES","FINALIZADO","SERGIO ALEXANDER SANTOS SANCHEZ",null,null,null,null,null,null,"SI","Acta 2 del 26 de enero de 2052","INVESTIGACION",2000000]
[37,2661,"SEMILLERO","CIENCIAS EXACTAS Y NATURALES","FISICA TEORICA","CALCULO DE LA REACTIVIDAD USANDO LA LEY DE BOOLE EN REACTORES NUCLEARES","2017-02-10","2018-03-30","14 MESES","FINALIZADO","DANIEL SUESCÚN DÍAZ",null,null,null,null,null,null,"SI","Acta 2 del 26 de enero de 2053","INVESTIGACION",2000000]
[38,2262,"SEMILLERO","CIENCIAS EXACTAS Y NATURALES","FISICA TEORICA","CALCULO DE LA FUNCION DE GREEN PARA SISTEMAS DISIPATIVOS MECÁNICOS Y ELECTROMAGNÉTICOS","2017-02-10","2018-03-30","14 MESES","FINALIZADO","FRANCIS ARMANDO SEGOVIA CHÁVEZ",null,null,null,null,null,null,"SI","Acta 2 del 26 de enero de 2054","INVESTIGACION",2000000]
[39,2663,"SEMILLERO","ECONOMIA Y ADMINISTRACION","GESTIÓN Y COMPLEJIDAD","HABILIDADES GERENCIALES APLICADAS EN LOS ESTABLECIMIENTOS DE PRODUCCION Y/O VENTA DE COMIDAS RÁPIDAS EN EL MUNICIPIO DE NEIVA ","2017-02-10","2018-03-30","14 MESES","FINALIZADO","HERNANDO GIL TOVAR",null,null,null,null,null,null,"SI","Acta 2 del 26 de enero de 2055","INVESTIGACION",2000000]
[40,2210,"SEMILLERO","CIENCIAS EXACTAS Y NATURALES","GINACUA","CARACTERIZACIÓN CITOGENÉTICA DE SACCODON DARIENSIS DE LA PARTE ALTA DEL RIO MAGDALENA","2017-02-10","2018-03-30","14 MESES","FINALIZADO","MAURICIO CARRILLO",null,null,null,null,null,null,"SI","Acta 2 del 26 de enero de 2056","INVESTIGACION",2000000]
[41,2669,"SEMILLERO","ECONOMIA Y ADMINISTRACION","GRIFO","EL SERVICIO FINANCIERO SOLIDARIO NECESIDADES DE FORTALECIMIENTO","C","2018-03-30","","FINALIZADO","FIDERNANDO ANTERA NÚÑEZ",null,null,null,null,null,null,"SI","Acta 2 del 26 de enero de 2057","INVESTIGACION",2000000]
[42,2225,"SEMILLERO","ECONOMIA Y ADMINISTRACION","GRIFO","EL COOPERATIVISMO, EL MICROCRÉDITO Y EL POSTCONFLICTO, ALTERNATIVAS DEL FUTURO","C","2018-03-30","","FINALIZADO","FIDERNANDO ANTERA NÚÑEZ",null,null,null,null,null,null,"SI","Acta 2 del 26 de enero de 2058","INVESTIGACION",2000000]
[43,2238,"SEMILLERO","ECONOMIA Y ADMINISTRACION","GRIFO","VIABILIDAD SOCIAL FINANCIERA Y DE CALIDAD PARA LA CREACION DE UN BANCO DE SEMEN Y EMBRIONES ENFOCADO A LOS PEQUEÑOS Y MEDIANOS GANADEROS DE LA REGIÓN SURCOLOMBIANA","2017-02-10","2018-03-30","14 MESES","FINALIZADO","RICARDO ALFREDO VARGAS SAENS",null,null,null,null,null,null,"SI","Acta 2 del 26 de enero de 2059","INVESTIGACION",2000000]
[44,2223,"SEMILLERO","ECONOMIA Y ADMINISTRACION","GRINCOUS","ACTUALIZACIÓN DE LOS CURRÍCULOS DE LOS PROGRAMAS DE CONTADURÍA PÚBLICA OFERTADOS EN NEIVA FRENTE A LA ENSEÑANZA DE LO INTERNACIONAL Y LA GLOBALIZACIÓN CONTABLE","2017-02-10","2018-03-30","14 MESES","FINALIZADO","PATRICIA CARRERA BERNAL",null,null,null,null,null,null,"SI","Acta 2 del 26 de enero de 2060","INVESTIGACION",2000000]
[45,2220,"SEMILLERO","ECONOMIA Y ADMINISTRACION","GRINCOUS","CONOCIMIENTOS FINANCIEROS BÁSICOS DE ESTUDIANTES DE LOS GRADOS TERCEROS A QUINTO DE PRIMARIA. (ESTUDIO DE CASO INSTITUCIONES EDUCATIVAS EL PARAÍSO ALGECIRAS Y CLARETIANO GUSTAVO TORRES PARRA, AÑO 2016).","2017-02-10","2018-03-30","14 MESES","FINALIZADO","GLORIA SANCHEZ TORRES",null,null,null,null,null,null,"SI","Acta 2 del 26 de enero de 2061","INVESTIGACION",2000000]
[46,2230,"SEMILLERO","CIENCIAS JURIDICAS Y POLITICAS","REGION Y POLITICA","DINÁMICAS TERRITORIALES QUE HAN INFLUIDO EN LA CONFORMACIÓN DEL ASENTAMIENTO ÁLVARO URIBE VÉLEZ EN LA CIUDAD DE NEIVA ENTRE 2002 Y 2016.","2017-02-10","2018-03-30","14 MESES","FINALIZADO","ALEXANDRA URIBE SANCHEZ",null,null,null,null,null,null,"SI","Acta 2 del 26 de enero de 2062","INVESTIGACION",2000000]
[47,2181,"SEMILLERO","ECONOMIA Y ADMINISTRACION","GRINCOUS","FACTORES QUE DETERMINAN LA RENTABILIDAD DEL CAFÉ EN UNA FINCA NO CERTIFICADA DE LA VEREDA BARZALOSA Y UNA FINCA CERTIFICADA DE LA VEREDA REGUEROS DEL MUNICIPIO DE PITALITO HUILA.","2017-02-10","2018-03-30","14 MESES","FINALIZADO","ELVIA MARÍA JIMÉNEZ ZAPATA",null,null,null,null,null,null,"SI","Acta 2 del 26 de enero de 2063","INVESTIGACION",2000000]
[48,2237,"SEMILLERO","CIENCIAS SOCIALES Y HUMANAS","IN-SUR-GENTES","SISTEMATIZACIÓN CAMPAÑA \"PARA LA GUERRA NADA, PARA LA PAZ TODO\"","2017-02-10","2018-03-30","14 MESES","FINALIZADO","JULIO ROBERTO JAIME",null,null,null,null,null,null,"SI","Acta 2 del 26 de enero de 2064","INVESTIGACION",2000000]
[49,2664,"SEMILLERO","CIENCIAS SOCIALES Y HUMANAS","IN-SUR-GENTES","CARACTERIZACIÓN DE LOS DISCURSOS DE PAZ DE 2010 AL 2016","2017-02-10","2018-03-30","14 MESES","FINALIZADO","JULIO ROBERTO JAIME",null,null,null,null,null,null,"SI","Acta 2 del 26 de enero de 2065","INVESTIGACION",2000000]
[50,2666,"SEMILLERO","CIENCIAS JURIDICAS Y POLITICAS","NUEVAS VISIONES DEL DERECHO","LA INTERPRETACIÓN JUDICIAL DE LAS ALTAS CORTES EN COLOMBIA (2010-2016)","2017-02-10","2018-03-30","14 MESES","FINALIZADO","GERMAN LÓPEZ DAZA",null,null,null,null,null,null,"SI","Acta 2 del 26 de enero de 2066","INVESTIGACION",2000000]
[51,2224,"SEMILLERO","CIENCIAS JURIDICAS Y POLITICAS","NUEVAS VISIONES DEL DERECHO","LA GARANTIA JUDICIAL DE LOS DERECHOS Y LIBERTADES FUNDAMENTALES EN AMÉRICA LATINA: ANÁLISIS DE LAS EXPERIENCIAS EN COLOMBIA, ECUADOR, PERÚ Y BOLIVIA","2017-02-10","2018-03-30","14 MESES","FINALIZADO","GERMAN LÓPEZ DAZA",null,null,null,null,null,null,"SI","Acta 2 del 26 de enero de 2067","INVESTIGACION",2000000]
[52,2672,"SEMILLERO","CIENCIAS JURIDICAS Y POLITICAS","NUEVAS VISIONES DEL DERECHO","DESARROLLO DEL CONCEPTO DE FAMILIA EN COLOMBIA Y SUS IMPLICACIONES JURÍDICAS, A TRAVÉS DE LA  JURISPRUDENCIA DE LA CORTE CONSTITUCIONAL, LA CORTE SUPREMA DE JUSTICIA Y EL CONSEJO DE ESTADO DESDE 1991","2017-02-10","2018-03-30","14 MESES","FINALIZADO","KATHERIN TORRES POSADA",null,null,null,null,null,null,"SI","Acta 2 del 26 de enero de 2068","INVESTIGACION",2000000]
[53,2201,"SEMILLERO","ECONOMIA Y ADMINISTRACION","OSLO","ESTABLECIMIENTO DE LOS FACTORES QUE INCIDEN EN LA COMPETITIVIDAD DEL CULTIVO DE CAFÉ EN LAS FINCAS DE LA VEREDA ALTO ORIENTE DEL MUNICIPIO DE TELLO – HUILA.","2017-02-10","2018-03-30","14 MESES","FINALIZADO","FRANCISCO JOSÉ MUÑOZ",null,null,null,null,null,null,"SI","Acta 2 del 26 de enero de 2069","INVESTIGACION",2000000]
[54,2670,"SEMILLERO","ECONOMIA Y ADMINISTRACION","OSLO","INFLUENCIA DE LA PUBLICIDAD EN EL CONSUMO DE BEBIDAS GASEOSAS DE LA MARCA COCA-COLA EN LOS ESTUDIANTES DE LA FACULTAD DE ECONOMÍA Y ADMINISTRACIÓN DE LA UNIVERSIDAD SURCOLOMBIANA.","2017-02-10","2018-03-30","14 MESES","FINALIZADO","FERNANDO ADOLFO FIERRO CELIAS",null,null,null,null,null,null,"SI","Acta 2 del 26 de enero de 2070","INVESTIGACION",2000000]
[55,2241,"SEMILLERO","CIENCIAS SOCIALES Y HUMANAS","PSICOLOGIA POSITIVA","CONECTIVIDAD CON LA NATURALEZA Y CONDUCTAS DE CONSUMO SOSTENIBLE EN UNA MUESTRA DE ESTUDIANTES DE EDUCACIÓN MEDIA DE LA CIUDAD DE NEIVA: UN ESTUDIO COMPARATIVO","C","2018-03-30","","FINALIZADO","WILLIAM SIERRA BARÓN",null,null,null,null,null,null,"SI","Acta 2 del 26 de enero de 2071","INVESTIGACION",2000000]
[56,2667,"SEMILLERO","CIENCIAS SOCIALES Y HUMANAS","PSICOLOGIA POSITIVA","CONCEPCIÓN DE SUJETO QUE SUBYACE A LAS PRÁCTICAS PEDAGÓGICAS DE INCLUSIÓN EN LA INSTITUCIÓN EDUCATIVA CEINAR SEDE RENACIENDO DE LA CIUDAD DE NEIVA","2017-02-10","2018-03-30","14 MESES","FINALIZADO","JULIÁN ALBERTO VANEGAS",null,null,null,null,null,null,"SI","Acta 2 del 26 de enero de 2072","INVESTIGACION",2000000]
[57,2235,"SEMILLERO","CIENCIAS JURIDICAS Y POLITICAS","REGION Y POLITICA","PERSPECTIVAS DE CONSTRUCCIÓN DE PAZ EN EL ASENTAMIENTO PEÑÓN REDONDO- NEIVA 2016","2017-02-10","2018-03-30","14 MESES","FINALIZADO","STEFANI CASTAÑO TORRES",null,null,null,null,null,null,"SI","Acta 2 del 26 de enero de 2073","INVESTIGACION",2000000]
[58,2229,"SEMILLERO","CIENCIAS JURIDICAS Y POLITICAS","REGION Y POLITICA","ASENTAMIENTOS INFORMALES Y DERECHO A LA CIUDAD. EL CASO DEL ASENTAMIENTO BRISAS DEL VENADO DE LA CIUDAD DE NEIVA.","2017-02-10","2018-03-30","14 MESES","FINALIZADO","JHONATAN BEDOYA HERNANDEZ",null,null,null,null,null,null,"SI","Acta 2 del 26 de enero de 2074","INVESTIGACION",2000000]
[59,2665,"SEMILLERO","SALUD","SALUD Y GRUPOS VULNERABLES","OPINIONES DE LOS ESTUDIANTES DE ENFERMERÍA SOBRE LA SENTENCIA C-355 DE 2006","2017-02-10","2018-03-30","14 MESES","FINALIZADO","CELMIRA LARA VÁSQUEZ",null,null,null,null,null,null,"SI","Acta 2 del 26 de enero de 2075","INVESTIGACION",2000000]
[60,2668,"SEMILLERO","SALUD","SALUD Y GRUPOS VULNERABLES","CONDICIONES Y PERSPECTIVAS COMUNITARIAS FRENTE A LA SEGURIDAD ALIMENTARIA Y NUTRICIONAL DEL RESGUARDO INDÍGENA TAMA – PÁEZ LA GABRIELA. 2017.","2017-02-10","2018-03-30","14 MESES","FINALIZADO","JUAN CAMILO CALDERÓN FARFÁN",null,null,null,null,null,null,"SI","Acta 2 del 26 de enero de 2076","INVESTIGACION",2000000]
[61,2232,"SEMILLERO","ECONOMIA Y ADMINISTRACION","SIMBIOSIS, HOMBRE Y NATURALEZA","CONSOLIDACIÓN DEL ESTADO DEL ARTE DE LA CONTABILIDAD AMBIENTAL ","2017-02-10","2018-03-30","14 MESES","FINALIZADO","ALMA YISETH GUTIERREZ",null,null,null,null,null,null,"SI","Acta 2 del 26 de enero de 2077","INVESTIGACION",2000000]
[62,2258,"SEMILLERO","EDUCACION","MOLÚFODE","UNA MIRADA A LOS CONCEPTOS DE TIEMPO LIBRE, OCIO Y RECREACIÓN DE LOS ESTUDIANTES, DOCENTES Y ADMINISTRATIVOS DE LA FACULTAD","2017-02-10","2018-03-30","14 MESES","FINALIZADO","ANGEL MILLER ROA CRUZ",null,null,null,null,null,null,"SI","Acta 2 del 26 de enero de 2078","INVESTIGACION",2000000]
[63,2173,"SEMILLERO","EDUCACION"," IUDEX","ANÁLISIS DEL REGISTRO EN EL DIARIO DEL HUILA DEL ACUERDO DE PAZ ALCANZADO ENTRE EL GOBIERNO Y LAS FARC","C","2018-03-30","","FINALIZADO","FREDDY ALBERTO MIER LOGATO",null,null,null,null,null,null,"SI","Acta 2 del 26 de enero de 2079","INVESTIGACION",2000000]
[64,2017,"MENOR CUANTIA","CIENCIAS SOCIALES Y HUMANAS","IN-SUR-GENTES","RECONFIGURACIÓN DEL TERRITORIO. DISCURSOS SOBRE TERRITORIO, DEMOCRACIA, DESARROLLO Y POLÍTICA EN EL DEPARTAMENTO DEL HUILA","2017-02-10","2018-03-30","14 MESES","FINALIZADO","YAMILE PEÑA POVEDA",null,null,null,null,null,null,"SI","Acta 2 del 26 de enero de 2080","INVESTIGACION",19330500]
[65,1958,"MENOR CUANTIA","CIENCIAS EXACTAS Y NATURALES","DINUSCO","LOS SISTEMAS DINÁMICOS DEL CAMBIO CLIMÁTICO Y LAS AFECTACIONES SOBRE LOS SISTEMAS ECOLÓGICOS LOCALES","2017-02-10","2018-03-30","14 MESES","FINALIZADO","MAURO MONTEALEGRE",null,null,null,null,null,null,"SI","Acta 2 del 26 de enero de 2081","INVESTIGACION",19330000]
[66,1963,"MENOR CUANTIA","ECONOMIA Y ADMINISTRACION","IGUAQUE","ESTUDIO DE CARACTERIZACIÓN DE LA POBLACIÓN DEDICADA AL SERVICIO DE TRANSPORTE URBANO EN MOTO Y FORMULACIÓN DE POLÍTICAS PÚBLICAS ALTERNATIVAS PARA LA CIUDAD DE NEIVA (H)","2017-02-10","2018-03-30",{"$f":"IF(G68=\"\",\"\",IF(G68=\"C\",\"\",(ROUND(DAYS360(G68,H68,1)/30,0)&\" MESES\")))","v":"14 MESES"},{"$f":"IF(G68=\"\",\"\",IF(H68=\"NO\",\"SIN FECHA\",IF(H68=\"\",\"SIN FECHA\",IF(TODAY()>H68,\"FINALIZADO\",IF(G68=\"C\",\"NO SE EJECUTA\",IF(G68<=TODAY(),\"VIGENTE\",\"SIN INICIAR\"))))))","v":"FINALIZADO"},"LUIS ALFREDO MUÑOZ VELAZCO",null,null,null,null,null,null,"SI","Acta 2 del 26 de enero de 2082","INVESTIGACION",17500000]
[67,1974,"MENOR CUANTIA","SALUD","SALUD Y GRUPOS VULNERABLES","CONOCIMIENTOS Y PRÁCTICAS QUE REALIZAN LOS PACIENTES DIABÉTICOS PARA LA PREVENCIÓN DEL PIE DIABÉTICO EN LA EMPRESA SOCIAL DEL ESTADO (ESE) CARMEN EMILIA OSPINA","2017-02-10","2018-03-30","14 MESES","FINALIZADO","MARÍA ELENA RODRIGUEZ",null,null,null,null,null,null,"SI","Acta 2 del 26 de enero de 2083","INVESTIGACION",19330000]
[68,1975,"MENOR CUANTIA","EDUCACION","COMUNIQUÉMONOS","ANÁLISIS DEL PROCESO EVALUATIVO DEL APRENDIZAJE DEL INGLÉS EN UN PROGRAMA DE LICENCIATURA EN LENGUA EXTRANJERA DE UNA UNIVERSIDAD PÚBLICA EN COLOMBIA","2017-02-10","2018-03-30","14 MESES","FINALIZADO","LILIAN ZAMBRANO CASTILLO",null,null,null,null,null,null,"SI","Acta 2 del 26 de enero de 2084","INVESTIGACION",17980000]
[69,1977,"MENOR CUANTIA","EDUCACION","PACA","CONSTRUCCIÓN DE PRÁCTICAS PEDAGÓGICAS ALTERNATIVAS PARA LA FORMACIÓN DE MAESTROS PARA LA PAZ, LA EQUIDAD Y LA RECONCILIACIÓN","2017-02-10","2018-03-30","14 MESES","FINALIZADO","NELSON LOPEZ JIMENEZ",null,null,null,null,null,null,"SI","Acta 2 del 26 de enero de 2085","INVESTIGACION",19330000]
[70,1995,"MENOR CUANTIA","CIENCIAS SOCIALES Y HUMANAS","COMUNICACIÓN MEMORIA Y REGION","INFLUENCIAS EN LA PRODUCCIÓN DE CONTENIDOS DE LAS EMISORAS UNIVERSITARIAS DE INTERÉS PÚBLICO DE LA REGIÓN SUR DE COLOMBIA (CAUCA, NARIÑO, CAQUETÁ Y HUILA), EN EL PERIODO 2011 – 2015","2017-02-10","2018-03-30","14 MESES","FINALIZADO","OSCAR IVAN FORERO MOSQUERA",null,null,null,null,null,null,"SI","Acta 2 del 26 de enero de 2086","INVESTIGACION",18420000]
[71,2000,"MENOR CUANTIA","SALUD","DNEUROSPY","MARCADORES BIOLÓGICOS NEUROCOGNITIVOS DE NIÑOS Y NIÑAS DE 7 A 9 AÑOS VÍCTIMAS DE ACOSO ESCOLAR","2017-02-10","2018-03-30","14 MESES","FINALIZADO","ALFREDÍS GONZALE HERNANDEZ",null,null,null,null,null,null,"SI","Acta 2 del 26 de enero de 2087","INVESTIGACION",17963960]
[72,2001,"MENOR CUANTIA","ECONOMIA Y ADMINISTRACION","GESTIÓN Y COMPLEJIDAD ORGANIZACIONAL","COMPETENCIAS GERENCIALES DE LOS LÍDERES ORGANIZACIONALES DEL SECTOR PRODUCTIVO DE LAS PASIFLORAS EN EL DEPARTAMENTO DEL HUILA","2017-02-10","2018-03-30","14 MESES","FINALIZADO","HERNANDO GIL TOVAR",null,null,null,null,null,null,"SI","Acta 2 del 26 de enero de 2088","INVESTIGACION",19380000]
[73,2006,"MENOR CUANTIA","CIENCIAS JURIDICAS Y POLITICAS","NUEVAS VISIONES DEL DERECHO","CARACTERIZACIÓN DE LAS ACCIONES CONSTITUCIONALES DERIVADAS DE LA CONSTRUCCIÓN DE LA HIDROELÉCTRICA DEL QUIMBO","2017-02-10","2018-03-30","14 MESES","FINALIZADO","GERMAN LÓPEZ DAZA",null,null,null,null,null,null,"SI","Acta 2 del 26 de enero de 2089","INVESTIGACION",19330000]
[74,2008,"MENOR CUANTIA","CIENCIAS JURIDICAS Y POLITICAS","ANDRÉS BELLO","EL PAPEL DE LA IGLESIA EN LOS PROCESOS DE PAZ Y RECONCILIACIÓN EN AMÉRICA LATINA – UNA MIRADA HISTÓRICA","2017-02-10","2018-03-30","14 MESES","FINALIZADO","LUIS FERNANDO PACHECO",null,null,null,null,null,null,"SI","Acta 2 del 26 de enero de 2090","INVESTIGACION",15400000]
[75,1982,"MENOR CUANTIA","CIENCIAS JURIDICAS Y POLITICAS","CON-CIENCIA JURÍDICA","LA CONCILIACIÓN PROCESAL OBLIGATORIA COMO MECANISMO DE DESCONGESTIÓN JUDICIAL EN LA JURISDICCIÓN CONTENCIOSA ADMINISTRATIVA DE ANTIOQUIA, BOLÍVAR, CUNDINAMARCA Y VALLE DEL CAUCA","2017-02-10","2018-03-30","14 MESES","FINALIZADO","MARIO CESAR TEJADA",null,null,null,null,null,null,"SI","Acta 2 del 26 de enero de 2091","INVESTIGACION",19300000]
[76,1973,"MENOR CUANTIA","EDUCACION","ILESEARCH","EL TRABAJO COLABORATIVO: UNA HERRAMIENTA PARA LA TRANSFORMACIÓN DE LAS PRÁCTICAS PEDAGÓGICAS","2017-02-10","2018-03-30","14 MESES","FINALIZADO","EDGAR ALIRIO INSUSTY",null,null,3156065509,null,null,null,"SI","Acta 2 del 26 de enero de 2092","INVESTIGACION",11640000]
[77,1960,"MENOR CUANTIA","INGENIERIA","TRATAMIENTO DE SEÑALES Y COMUNICACIONES","DISEÑO E IMPLEMENTACIÓN DE SISTEMA DE GUÍA INERCIAL PARA EL CONTROL DE VUELO AUTÓNOMO DE UN HELICÓPTERO AEROMODELO","2017-02-10","2018-03-30","14 MESES","FINALIZADO","FAIBER ROBAYO",null,null,null,null,null,null,"SI","Acta 2 del 26 de enero de 2093","INVESTIGACION",19000000]
[78,1961,"MENOR CUANTIA","CIENCIAS EXACTAS Y NATURALES","BIOESMATH","ANÁLISIS DE ESTABILIDAD EN EL MODELO PARA EL VIH EN EL MUNICIPIO DE NEIVA","2017-02-10","2018-03-30","14 MESES","FINALIZADO","YINET MEDINA ARCE",null,null,null,null,null,null,"SI","Acta 2 del 26 de enero de 2094","INVESTIGACION",12600000]
[79,2412,"MENOR CUANTIA","CIENCIAS EXACTAS Y NATURALES","GINACUA","IDENTIFICACIÓN DE ESPECIES ICTICAS EN EL ÁREA DE INFLUENCIA DE LA HIDROELÉCTRICA DEL QUIMBO","2017-02-10","2018-03-30","14 MESES","FINALIZADO","MAURICIO CARRILLO AVILA",null,null,null,null,null,null,"SI","Acta 2 del 26 de enero de 2095","INVESTIGACION",19330500]
[80,2011,"MENOR CUANTIA","CIENCIAS JURIDICAS Y POLITICAS","CYNERGIA","LA EMPRESA EN EL POSCONFLICTO,  UNA MIRADA REGIONAL","2017-02-10","2018-03-30","14 MESES","FINALIZADO","DIANA MARCELA ORTIZ",null,null,null,null,null,null,"SI","Acta 2 del 26 de enero de 2096","INVESTIGACION",18750000]
[81,2659,"MENOR CUANTIA","EDUCACION","APRENAP","EFECTOS DE DOS MÉTODOS DE RETROALIMENTACIÓN CORRECTIVA EN LA ESCRITURA EN INGLÉS COMO LENGUA EXTRANJERA (ILE): EL DESARROLLO DE LA PRECISIÓN GRAMATICAL Y LEXICAL.","2017-02-10","2018-03-30","14 MESES","FINALIZADO","CARLOS ALCIDES MUÑOZ",null,null,null,null,null,null,"SI","Acta 2 del 26 de enero de 2097","INVESTIGACION",11860000]
[82,1891,"MENOR CUANTIA","EDUCACION","PRACTICAS PEDAGÓGICAS EN EDUCACIÓN E CIENCIAS, FORMACIÓN DE PROFESORES Y TIC. (PPECINTIC)","ACTITUD Y USO DE LAS TIC DE LOS PROFESORES  DE NIVEL EDUCATIVO DE LA BÁSICA SECUNDARIA Y MEDIA EN LA ENSEÑANZA DE LAS CIENCIAS NATURALES EN LAS INSTITUCIONES PÚBLICAS EDUCATIVAS DE NEIVA","2017-02-10","2018-03-30","14 MESES","FINALIZADO","ZULLY CUELLAR LOPEZ",null,null,null,null,null,null,"SI","Acta 2 del 26 de enero de 2098","INVESTIGACION",17800000]
[83,1997,"MENOR CUANTIA","CIENCIAS EXACTAS Y NATURALES","FÍSICA TEÓRICA","ESTUDIO DE LA RADIACIÓN ELECTROMAGNÉTICA INCIDENTE SOBRE SISTEMAS PERIÓDICOS DE GEOMETRÍA PLANAS Y ESFÉRICA, CON MATERIALES DE DIFERENTES PROPIEDADES ELECTROMAGNÉTICAS","2017-02-10","2018-03-30","14 MESES","FINALIZADO","FRANCIS ARMANDO SEGOVIA",null,null,null,null,null,null,"SI","Acta 2 del 26 de enero de 2099","INVESTIGACION",19330000]
[84,2274,"MEDIANA CUANTIA","INGENIERIA","AGROINDUSTRIA USCO ","DESARROLLO DE UN NUEVO PRODUCTO A BASE DE FILETE DE TILAPIA (OREOCHROMIS SP.) MEDIANTE LA APLICACIÓN DE MÉTODOS DE SALADO","2017-08-08","2018-08-08","12 MESES","VIGENTE","NELSON GUTIERREZ GUZMAN",null,null,null,null,null,null,"SI","Acta 2 del 26 de enero de 2100","INVESTIGACION",50000000]
[85,2282,"MEDIANA CUANTIA","EDUCACION","PACA","LA PERMANENCIA Y EL ABANDONO ESTUDIANTILES: FISURAS PARA LA ESCUELA DE LA PAZ, LA EQUIDAD, LA RECONCILIACIÓN Y EL EJERCICIO DE LOS DDHH EN EL MARCO DEL POSCONFLICTO","2017-08-08","2018-08-08","12 MESES","VIGENTE","NELSON ERNESTO LOPEZ JIMENEZ",null,null,null,null,null,null,"SI","Acta 2 del 26 de enero de 2101","INVESTIGACION",50000000]
[86,2307,"MEDIANA CUANTIA","SALUD","PARASITOLOGÍA Y MEDICINA  TROPICAL","NIVELES DE INTERFERÓN GAMMA Y CITOCINAS PRO-INFLAMATORIAS EN LAVADO BRONCO-ALVEOLAR DE PACIENTES ADULTOS CON SOSPECHA DE TUBERCULOSIS","2017-08-08","2018-08-08","12 MESES","VIGENTE","CARLOS FERNANDO NARVAEZ ROJAS",null,null,null,null,null,null,"SI","Acta 2 del 26 de enero de 2102","INVESTIGACION",50000000]
[87,2310,"MEDIANA CUANTIA","SALUD","SALUD Y GRUPOS VULNERABLES ","RECONSTRUCCIÓN DE LOS ITINERARIOS TERAPÉUTICOS DE LAS MUJERES CON CÁNCER DE MAMA PARA LA RECONSTRUCCIÓN DE LOS SENOS EN LA CIUDAD DE NEIVA (HUILA). ","2017-08-08","2018-08-08","12 MESES","VIGENTE","CELMIRA LAZA VÁSQUEZ",null,null,null,null,null,null,"SI","Acta 2 del 26 de enero de 2103","INVESTIGACION",50000000]
[88,2299,"MEDIANA CUANTIA","SALUD","MIDNEUROPSY","CORRELATOS NEUROFISIOLÓGICOS (ELECTROENCEFALOGRAFÍA) DEL PROCESAMIENTO EMOCIONAL DE LOS PERFILES CLÍNICOS EN NIÑOS","2017-08-08","2018-08-08","12 MESES","VIGENTE","ALFREDIS GONZALEZ HERNANDEZ",null,null,null,null,null,null,"SI","Acta 2 del 26 de enero de 2104","INVESTIGACION",50000000]
[89,2292,"MEDIANA CUANTIA","SALUD","CARLOS FINLAY","CALIDAD DE VIDA Y ASPECTOS PSICOSOCIALES EN UNA MUESTRA DE PACIENTES DIAGNOSTICADOS CON SÍNDROME DE FIBROMIALGIA EN LAS CIUDADES DE NEIVA Y TUNJA.","2017-08-08","2018-08-08","12 MESES","VIGENTE","NICOLÁS ARTURO NÚÑEZ GÓMEZ",null,null,null,null,null,null,"SI","Acta 2 del 26 de enero de 2105","INVESTIGACION",50000000]
[90,2334,"MEDIANA CUANTIA","CIENCIAS EXACTAS Y NATURALES","FÍSICA TEÓRICA","ESTUDIO DE LA FRICCIÓN EN MECÁNICA CUÁNTICA","2017-08-08","2018-08-08","12 MESES","VIGENTE","HERNANDO GONZÁLEZ SIERRA",null,null,null,null,null,null,"SI","Acta 2 del 26 de enero de 2106","INVESTIGACION",50000000]
[null,null,null,null,null,null,null,null,"",""]
[null,null,null,null,null,null,null,null,"",""]
[null,null,null,null,null,null,null,null,"",""]
[null,null,null,null,null,null,null,null,"",""]
[null,null,null,null,null,null,null,null,"",""]
[null,null,null,null,null,null,null,null,"",""]
[null,null,null,null,null,null,null,null,"",""]
[null,null,null,null,null,null,null,null,"",""]
[null,null,null,null,null,null,null,null,"",""]
[null,null,null,null,null,null,null,null,"",""]
[null,null,null,null,null,null,null,null,"",""]
[null,null,null,null,null,null,null,null,"",""]
[null,null,null,null,null,null,null,null,"",""]
[null,null,null,null,null,null,null,null,"",""]
[null,null,null,null,null,null,null,null,"",""]
[null,null,null,null,null,null,null,null,"",""]
[null,null,null,null,null,null,null,null,"",""]
[null,null,null,null,null,null,null,null,"",""]
[null,null,null,null,null,null,null,null,"",""]
[null,null,null,null,null,null,null,null,"",""]
[null,null,null,null,null,null,null,null,"",""]
[null,null,null,null,null,null,null,null,"",""]
[null,null,null,null,null,null,null,null,"",""]
[null,null,null,null,null,null,null,null,"",""]
[null,null,null,null,null,null,null,null,"",""]
[null,null,null,null,null,null,null,null,"",""]
[null,null,null,null,null,null,null,null,{"$f":"IF(G119=\"\",\"\",(ROUND(DAYS360(G119,H119,1)/30,0) & \" MESES\"))","v":""},""]
[null,null,null,null,null,null,null,null,"",""]
[null,null,null,null,null,null,null,null,"",""]
[null,null,null,null,null,null,null,null,"",""]
[null,null,null,null,null,null,null,null,"",""]
[null,null,null,null,null,null,null,null,"",""]
[null,null,null,null,null,null,null,null,"",""]
[null,null,null,null,null,null,null,null,"",""]
[null,null,null,null,null,null,null,null,"",""]
[null,null,null,null,null,null,null,null,"",""]
[null,null,null,null,null,null,null,null,"",""]
[null,null,null,null,null,null,null,null,"",""]
[null,null,null,null,null,null,null,null,"",""]
[null,null,null,null,null,null,null,null,{"$f":"IF(G132=\"\",\"\",(ROUND(DAYS360(G132,H132,1)/30,0) & \" MESES\"))","v":""},{"$f":"IF(G132=\"\",\"\",IF(H132=\"NO\",\"SIN FECHA\",IF(H132=\"\",\"SIN FECHA\",IF(TODAY()>H132,\"FINALIZADO\",IF(G132=\"C\",\"NO SE EJECUTA\",IF(G132<=TODAY(),\"VIGENTE\",\"SIN INICIAR\"))))))","v":""}]
[null,null,null,null,null,null,null,null,"",""]
[null,null,null,null,null,null,null,null,"",""]
[null,null,null,null,null,null,null,null,"",""]
[null,null,null,null,null,null,null,null,"",""]
[null,null,null,null,null,null,null,null,"",""]
[null,null,null,null,null,null,null,null,"",""]
[null,null,null,null,null,null,null,null,"",""]
[null,null,null,null,null,null,null,null,"",""]
[null,null,null,null,null,null,null,null,"",""]
[null,null,null,null,null,null,null,null,"",""]
[null,null,null,null,null,null,null,null,"",""]
[null,null,null,null,null,null,null,null,"",""]
[null,null,null,null,null,null,null,null,"",""]
[null,null,null,null,null,null,null,null,"",""]
[null,null,null,null,null,null,null,null,"",""]
[null,null,null,null,null,null,null,null,"",""]
[null,null,null,null,null,null,null,null,"",""]
[null,null,null,null,null,null,null,null,"",""]
[null,null,null,null,null,null,null,null,"",""]
[null,null,null,null,null,null,null,null,"",""]
[null,null,null,null,null,null,null,null,"",""]
[null,null,null,null,null,null,null,null,"",""]
[null,null,null,null,null,null,null,null,"",""]
[null,null,null,null,null,null,null,null,"",""]
[null,null,null,null,null,null,null,null,"",""]
[null,null,null,null,null,null,null,null,"",""]
[null,null,null,null,null,null,null,null,"",""]
[null,null,null,null,null,null,null,null,"",""]
[null,null,null,null,null,null,null,null,"",""]
[null,null,null,null,null,null,null,null,"",""]
[null,null,null,null,null,null,null,null,"",""]
[null,null,null,null,null,null,null,null,"",""]
[null,null,null,null,null,null,null,null,"",""]
[null,null,null,null,null,null,null,null,"",""]
[null,null,null,null,null,null,null,null,"",""]
[null,null,null,null,null,null,null,null,"",""]
[null,null,null,null,null,null,null,null,"",""]
[null,null,null,null,null,null,null,null,"",""]
[null,null,null,null,null,null,null,null,"",""]
[null,null,null,null,null,null,null,null,"",""]
[null,null,null,null,null,null,null,null,"",""]
[null,null,null,null,null,null,null,null,"",""]
[null,null,null,null,null,null,null,null,"",""]
[null,null,null,null,null,null,null,null,"",""]
[null,null,null,null,null,null,null,null,"",""]
[null,null,null,null,null,null,null,null,"",""]
[null,null,null,null,null,null,null,null,"",""]
[null,null,null,null,null,null,null,null,"",""]
[null,null,null,null,null,null,null,null,"",""]
[null,null,null,null,null,null,null,null,"",""]
[null,null,null,null,null,null,null,null,"",""]
[null,null,null,null,null,null,null,null,"",""]
[null,null,null,null,null,null,null,null,"",""]
[null,null,null,null,null,null,null,null,"",""]
[null,null,null,null,null,null,null,null,"",""]
[null,null,null,null,null,null,null,null,"",""]
[null,null,null,null,null,null,null,null,"",""]
[null,null,null,null,null,null,null,null,"",""]
[null,null,null,null,null,null,null,null,"",""]
[null,null,null,null,null,null,null,null,"",""]
[null,null,null,null,null,null,null,null,"",""]
[null,null,null,null,null,null,null,null,"",""]
[null,null,null,null,null,null,null,null,"",""]
[null,null,null,null,null,null,null,null,{"$f":"IF(G196=\"\",\"\",(ROUND(DAYS360(G196,H196,1)/30,0) & \" MESES\"))","v":""},{"$f":"IF(G196=\"\",\"\",IF(H196=\"NO\",\"SIN FECHA\",IF(H196=\"\",\"SIN FECHA\",IF(TODAY()>H196,\"FINALIZADO\",IF(G196=\"C\",\"NO SE EJECUTA\",IF(G196<=TODAY(),\"VIGENTE\",\"SIN INICIAR\"))))))","v":""}]
[null,null,null,null,null,null,null,null,"",""]
[null,null,null,null,null,null,null,null,"",""]
[null,null,null,null,null,null,null,null,"",""]
[null,null,null,null,null,null,null,null,"",""]
[null,null,null,null,null,null,null,null,"",""]
[null,null,null,null,null,null,null,null,"",""]
[null,null,null,null,null,null,null,null,"",""]
[null,null,null,null,null,null,null,null,"",""]
[null,null,null,null,null,null,null,null,"",""]
[null,null,null,null,null,null,null,null,"",""]
[null,null,null,null,null,null,null,null,"",""]
[null,null,null,null,null,null,null,null,"",""]
[null,null,null,null,null,null,null,null,"",""]
[null,null,null,null,null,null,null,null,"",""]
[null,null,null,null,null,null,null,null,"",""]
[null,null,null,null,null,null,null,null,"",""]
[null,null,null,null,null,null,null,null,"",""]
[null,null,null,null,null,null,null,null,"",""]
[null,null,null,null,null,null,null,null,"",""]
[null,null,null,null,null,null,null,null,"",""]
[null,null,null,null,null,null,null,null,"",""]
[null,null,null,null,null,null,null,null,"",""]
[null,null,null,null,null,null,null,null,"",""]
[null,null,null,null,null,null,null,null,"",""]
[null,null,null,null,null,null,null,null,"",""]
[null,null,null,null,null,null,null,null,"",""]
[null,null,null,null,null,null,null,null,"",""]
[null,null,null,null,null,null,null,null,"",""]
[null,null,null,null,null,null,null,null,"",""]
[null,null,null,null,null,null,null,null,"",""]
[null,null,null,null,null,null,null,null,"",""]
[null,null,null,null,null,null,null,null,"",""]
[null,null,null,null,null,null,null,null,"",""]
[null,null,null,null,null,null,null,null,"",""]
[null,null,null,null,null,null,null,null,"",""]
[null,null,null,null,null,null,null,null,"",""]
[null,null,null,null,null,null,null,null,"",""]
[null,null,null,null,null,null,null,null,"",""]
[null,null,null,null,null,null,null,null,"",""]
[null,null,null,null,null,null,null,null,"",""]
[null,null,null,null,null,null,null,null,"",""]
[null,null,null,null,null,null,null,null,"",""]
[null,null,null,null,null,null,null,null,"",""]
[null,null,null,null,null,null,null,null,"",""]
[null,null,null,null,null,null,null,null,"",""]
[null,null,null,null,null,null,null,null,"",""]
[null,null,null,null,null,null,null,null,"",""]
[null,null,null,null,null,null,null,null,"",""]
[null,null,null,null,null,null,null,null,"",""]
[null,null,null,null,null,null,null,null,"",""]
[null,null,null,null,null,null,null,null,"",""]
[null,null,null,null,null,null,null,null,"",""]
[null,null,null,null,null,null,null,null,"",""]
[null,null,null,null,null,null,null,null,"",""]
[null,null,null,null,null,null,null,null,"",""]
[null,null,null,null,null,null,null,null,"",""]
[null,null,null,null,null,null,null,null,"",""]
[null,null,null,null,null,null,null,null,"",""]
[null,null,null,null,null,null,null,null,"",""]
[null,null,null,null,null,null,null,null,"",""]
[null,null,null,null,null,null,null,null,"",""]
[null,null,null,null,null,null,null,null,"",""]
[null,null,null,null,null,null,null,null,"",""]
[null,null,null,null,null,null,null,null,{"$f":"IF(G260=\"\",\"\",(ROUND(DAYS360(G260,H260,1)/30,0) & \" MESES\"))","v":""},{"$f":"IF(G260=\"\",\"\",IF(H260=\"NO\",\"SIN FECHA\",IF(H260=\"\",\"SIN FECHA\",IF(TODAY()>H260,\"FINALIZADO\",IF(G260=\"C\",\"NO SE EJECUTA\",IF(G260<=TODAY(),\"VIGENTE\",\"SIN INICIAR\"))))))","v":""}]
[null,null,null,null,null,null,null,null,"",""]
[null,null,null,null,null,null,null,null,"",""]
[null,null,null,null,null,null,null,null,"",""]
[null,null,null,null,null,null,null,null,"",""]
[null,null,null,null,null,null,null,null,"",""]
[null,null,null,null,null,null,null,null,"",""]
[null,null,null,null,null,null,null,null,"",""]
[null,null,null,null,null,null,null,null,"",""]
[null,null,null,null,null,null,null,null,"",""]
[null,null,null,null,null,null,null,null,"",""]
[null,null,null,null,null,null,null,null,"",""]
[null,null,null,null,null,null,null,null,"",""]
[null,null,null,null,null,null,null,null,"",""]
[null,null,null,null,null,null,null,null,"",""]
[null,null,null,null,null,null,null,null,"",""]
[null,null,null,null,null,null,null,null,"",""]
[null,null,null,null,null,null,null,null,"",""]
[null,null,null,null,null,null,null,null,"",""]
[null,null,null,null,null,null,null,null,"",""]
[null,null,null,null,null,null,null,null,"",""]
[null,null,null,null,null,null,null,null,"",""]
[null,null,null,null,null,null,null,null,"",""]
[null,null,null,null,null,null,null,null,"",""]
[null,null,null,null,null,null,null,null,"",""]
[null,null,null,null,null,null,null,null,"",""]
[null,null,null,null,null,null,null,null,"",""]
[null,null,null,null,null,null,null,null,"",""]
[null,null,null,null,null,null,null,null,"",""]
[null,null,null,null,null,null,null,null,"",""]
[null,null,null,null,null,null,null,null,"",""]
[null,null,null,null,null,null,null,null,"",""]
[null,null,null,null,null,null,null,null,"",""]
[null,null,null,null,null,null,null,null,"",""]
[null,null,null,null,null,null,null,null,"",""]
[null,null,null,null,null,null,null,null,"",""]
[null,null,null,null,null,null,null,null,"",""]
[null,null,null,null,null,null,null,null,"",""]
[null,null,null,null,null,null,null,null,"",""]
[null,null,null,null,null,null,null,null,"",""]
[null,null,null,null,null,null,null,null,"",""]
[null,null,null,null,null,null,null,null,"",""]
[null,null,null,null,null,null,null,null,"",""]
[null,null,null,null,null,null,null,null,"",""]
[null,null,null,null,null,null,null,null,"",""]
[null,null,null,null,null,null,null,null,"",""]
[null,null,null,null,null,null,null,null,"",""]
[null,null,null,null,null,null,null,null,"",""]
[null,null,null,null,null,null,null,null,"",""]
[null,null,null,null,null,null,null,null,"",""]
[null,null,null,null,null,null,null,null,"",""]
[null,null,null,null,null,null,null,null,"",""]
[null,null,null,null,null,null,null,null,"",""]
[null,null,null,null,null,null,null,null,"",""]
[null,null,null,null,null,null,null,null,"",""]
[null,null,null,null,null,null,null,null,"",""]
[null,null,null,null,null,null,null,null,"",""]
[null,null,null,null,null,null,null,null,"",""]
[null,null,null,null,null,null,null,null,"",""]
[null,null,null,null,null,null,null,null,"",""]
[null,null,null,null,null,null,null,null,"",""]
[null,null,null,null,null,null,null,null,"",""]
[null,null,null,null,null,null,null,null,"",""]
[null,null,null,null,null,null,null,null,"",""]
[null,null,null,null,null,null,null,null,{"$f":"IF(G324=\"\",\"\",(ROUND(DAYS360(G324,H324,1)/30,0) & \" MESES\"))","v":""},{"$f":"IF(G324=\"\",\"\",IF(H324=\"NO\",\"SIN FECHA\",IF(H324=\"\",\"SIN FECHA\",IF(TODAY()>H324,\"FINALIZADO\",IF(G324=\"C\",\"NO SE EJECUTA\",IF(G324<=TODAY(),\"VIGENTE\",\"SIN INICIAR\"))))))","v":""}]
[null,null,null,null,null,null,null,null,"",""]
[null,null,null,null,null,null,null,null,"",""]
[null,null,null,null,null,null,null,null,"",""]
[null,null,null,null,null,null,null,null,"",""]
[null,null,null,null,null,null,null,null,"",""]
[null,null,null,null,null,null,null,null,"",""]
[null,null,null,null,null,null,null,null,"",""]
[null,null,null,null,null,null,null,null,"",""]
[null,null,null,null,null,null,null,null,"",""]
[null,null,null,null,null,null,null,null,"",""]
[null,null,null,null,null,null,null,null,"",""]
[null,null,null,null,null,null,null,null,"",""]
[null,null,null,null,null,null,null,null,"",""]
[null,null,null,null,null,null,null,null,"",""]
[null,null,null,null,null,null,null,null,"",""]
[null,null,null,null,null,null,null,null,"",""]
[null,null,null,null,null,null,null,null,"",""]
[null,null,null,null,null,null,null,null,"",""]
[null,null,null,null,null,null,null,null,"",""]
[null,null,null,null,null,null,null,null,"",""]
[null,null,null,null,null,null,null,null,"",""]
[null,null,null,null,null,null,null,null,"",""]
[null,null,null,null,null,null,null,null,"",""]
[null,null,null,null,null,null,null,null,"",""]
[null,null,null,null,null,null,null,null,"",""]
[null,null,null,null,null,null,null,null,"",""]
[null,null,null,null,null,null,null,null,"",""]
[null,null,null,null,null,null,null,null,"",""]
[null,null,null,null,null,null,null,null,"",""]
[null,null,null,null,null,null,null,null,"",""]
[null,null,null,null,null,null,null,null,"",""]
[null,null,null,null,null,null,null,null,"",""]
[null,null,null,null,null,null,null,null,"",""]
[null,null,null,null,null,null,null,null,"",""]
[null,null,null,null,null,null,null,null,"",""]
[null,null,null,null,null,null,null,null,"",""]
[null,null,null,null,null,null,null,null,"",""]
[null,null,null,null,null,null,null,null,"",""]
[null,null,null,null,null,null,null,null,"",""]
[null,null,null,null,null,null,null,null,"",""]
[null,null,null,null,null,null,null,null,"",""]
[null,null,null,null,null,null,null,null,"",""]
[null,null,null,null,null,null,null,null,"",""]
[null,null,null,null,null,null,null,null,"",""]
[null,null,null,null,null,null,null,null,"",""]
[null,null,null,null,null,null,null,null,"",""]
[null,null,null,null,null,null,null,null,"",""]
[null,null,null,null,null,null,null,null,"",""]
[null,null,null,null,null,null,null,null,"",""]
[null,null,null,null,null,null,null,null,"",""]
[null,null,null,null,null,null,null,null,"",""]
[null,null,null,null,null,null,null,null,"",""]
[null,null,null,null,null,null,null,null,"",""]
[null,null,null,null,null,null,null,null,"",""]
[null,null,null,null,null,null,null,null,"",""]
[null,null,null,null,null,null,null,null,"",""]
[null,null,null,null,null,null,null,null,"",""]
[null,null,null,null,null,null,null,null,"",""]
[null,null,null,null,null,null,null,null,"",""]
[null,null,null,null,null,null,null,null,"",""]
[null,null,null,null,null,null,null,null,"",""]
[null,null,null,null,null,null,null,null,"",""]
[null,null,null,null,null,null,null,null,"",""]
[null,null,null,null,null,null,null,null,{"$f":"IF(G388=\"\",\"\",(ROUND(DAYS360(G388,H388,1)/30,0) & \" MESES\"))","v":""},{"$f":"IF(G388=\"\",\"\",IF(H388=\"NO\",\"SIN FECHA\",IF(H388=\"\",\"SIN FECHA\",IF(TODAY()>H388,\"FINALIZADO\",IF(G388=\"C\",\"NO SE EJECUTA\",IF(G388<=TODAY(),\"VIGENTE\",\"SIN INICIAR\"))))))","v":""}]
[null,null,null,null,null,null,null,null,"",""]
[null,null,null,null,null,null,null,null,"",""]
[null,null,null,null,null,null,null,null,"",""]
[null,null,null,null,null,null,null,null,"",""]
[null,null,null,null,null,null,null,null,"",""]
[null,null,null,null,null,null,null,null,"",""]
[null,null,null,null,null,null,null,null,"",""]
[null,null,null,null,null,null,null,null,"",""]
[null,null,null,null,null,null,null,null,"",""]
[null,null,null,null,null,null,null,null,"",""]
[null,null,null,null,null,null,null,null,"",""]
[null,null,null,null,null,null,null,null,"",""]
[null,null,null,null,null,null,null,null,"",""]
[null,null,null,null,null,null,null,null,"",""]
[null,null,null,null,null,null,null,null,"",""]
[null,null,null,null,null,null,null,null,"",""]
[null,null,null,null,null,null,null,null,"",""]
[null,null,null,null,null,null,null,null,"",""]
[null,null,null,null,null,null,null,null,"",""]
[null,null,null,null,null,null,null,null,"",""]
[null,null,null,null,null,null,null,null,"",""]
[null,null,null,null,null,null,null,null,"",""]
[null,null,null,null,null,null,null,null,"",""]
[null,null,null,null,null,null,null,null,"",""]
[null,null,null,null,null,null,null,null,"",""]
[null,null,null,null,null,null,null,null,"",""]
[null,null,null,null,null,null,null,null,"",""]
[null,null,null,null,null,null,null,null,"",""]
[null,null,null,null,null,null,null,null,"",""]
[null,null,null,null,null,null,null,null,"",""]
[null,null,null,null,null,null,null,null,"",""]
[null,null,null,null,null,null,null,null,"",""]
[null,null,null,null,null,null,null,null,"",""]
[null,null,null,null,null,null,null,null,"",""]
[null,null,null,null,null,null,null,null,"",""]
[null,null,null,null,null,null,null,null,"",""]
[null,null,null,null,null,null,null,null,"",""]
[null,null,null,null,null,null,null,null,"",""]
[null,null,null,null,null,null,null,null,"",""]
[null,null,null,null,null,null,null,null,"",""]
[null,null,null,null,null,null,null,null,"",""]
[null,null,null,null,null,null,null,null,"",""]
[null,null,null,null,null,null,null,null,"",""]
[null,null,null,null,null,null,null,null,"",""]
[null,null,null,null,null,null,null,null,"",""]
[null,null,null,null,null,null,null,null,"",""]
[null,null,null,null,null,null,null,null,"",""]
[null,null,null,null,null,null,null,null,"",""]
[null,null,null,null,null,null,null,null,"",""]
[null,null,null,null,null,null,null,null,"",""]
[null,null,null,null,null,null,null,null,"",""]
[null,null,null,null,null,null,null,null,"",""]
[null,null,null,null,null,null,null,null,"",""]
[null,null,null,null,null,null,null,null,"",""]
[null,null,null,null,null,null,null,null,"",""]
[null,null,null,null,null,null,null,null,"",""]
[null,null,null,null,null,null,null,null,"",""]
[null,null,null,null,null,null,null,null,"",""]
[null,null,null,null,null,null,null,null,"",""]
[null,null,null,null,null,null,null,null,"",""]
[null,null,null,null,null,null,null,null,"",""]
[null,null,null,null,null,null,null,null,"",""]
[null,null,null,null,null,null,null,null,"",""]
[null,null,null,null,null,null,null,null,{"$f":"IF(G452=\"\",\"\",(ROUND(DAYS360(G452,H452,1)/30,0) & \" MESES\"))","v":""},{"$f":"IF(G452=\"\",\"\",IF(H452=\"NO\",\"SIN FECHA\",IF(H452=\"\",\"SIN FECHA\",IF(TODAY()>H452,\"FINALIZADO\",IF(G452=\"C\",\"NO SE EJECUTA\",IF(G452<=TODAY(),\"VIGENTE\",\"SIN INICIAR\"))))))","v":""}]
[null,null,null,null,null,null,null,null,"",""]
[null,null,null,null,null,null,null,null,"",""]
[null,null,null,null,null,null,null,null,"",""]
[null,null,null,null,null,null,null,null,"",""]
[null,null,null,null,null,null,null,null,"",""]
[null,null,null,null,null,null,null,null,"",""]
[null,null,null,null,null,null,null,null,"",""]
[null,null,null,null,null,null,null,null,"",""]
[null,null,null,null,null,null,null,null,"",""]
[null,null,null,null,null,null,null,null,"",""]
[null,null,null,null,null,null,null,null,"",""]
[null,null,null,null,null,null,null,null,"",""]
[null,null,null,null,null,null,null,null,"",""]
[null,null,null,null,null,null,null,null,"",""]
[null,null,null,null,null,null,null,null,"",""]
[null,null,null,null,null,null,null,null,"",""]
[null,null,null,null,null,null,null,null,"",{"$f":"IF(G469=\"\",\"\",IF(H469=\"NO\",\"SIN FECHA\",IF(H469=\"\",\"SIN FECHA\",IF(TODAY()>H469,\"FINALIZADO\",IF(G469<=TODAY(),\"VIGENTE\",\"SIN INICIAR\")))))","v":""}]
[null,null,null,null,null,null,null,null,"",""]
[null,null,null,null,null,null,null,null,"",""]
[null,null,null,null,null,null,null,null,"",""]
[null,null,null,null,null,null,null,null,"",""]
[null,null,null,null,null,null,null,null,"",""]
[null,null,null,null,null,null,null,null,"",""]
[null,null,null,null,null,null,null,null,"",""]
[null,null,null,null,null,null,null,null,"",""]
[null,null,null,null,null,null,null,null,"",""]
[null,null,null,null,null,null,null,null,"",""]
[null,null,null,null,null,null,null,null,"",""]
[null,null,null,null,null,null,null,null,"",""]
[null,null,null,null,null,null,null,null,"",""]
[null,null,null,null,null,null,null,null,"",""]
[null,null,null,null,null,null,null,null,"",""]
[null,null,null,null,null,null,null,null,"",""]
[null,null,null,null,null,null,null,null,"",""]
[null,null,null,null,null,null,null,null,"",""]
[null,null,null,null,null,null,null,null,"",""]
[null,null,null,null,null,null,null,null,"",""]
[null,null,null,null,null,null,null,null,"",""]
[null,null,null,null,null,null,null,null,"",""]
[null,null,null,null,null,null,null,null,"",""]
[null,null,null,null,null,null,null,null,"",{"$f":"IF(G493=\"\",\"\",IF(H493=\"NO\",\"SIN FECHA\",IF(H493=\"\",\"SIN FECHA\",IF(TODAY()>H493,\"FINALIZADO\",IF(G493<=TODAY(),\"VIGENTE\",\"SIN INICIAR\")))))","v":""}]
[null,null,null,null,null,null,null,null,"",""]
[null,null,null,null,null,null,null,null,"",""]
[null,null,null,null,null,null,null,null,"",""]
[null,null,null,null,null,null,null,null,"",""]
[null,null,null,null,null,null,null,null,"",""]
[null,null,null,null,null,null,null,null,"",""]
[null,null,null,null,null,null,null,null,"",""]
[null,null,null,null,null,null,null,null,"",""]
[null,null,null,null,null,null,null,null,"",""]
[null,null,null,null,null,null,null,null,"",""]
[null,null,null,null,null,null,null,null,"",""]
[null,null,null,null,null,null,null,null,"",""]
[null,null,null,null,null,null,null,null,"",""]
[null,null,null,null,null,null,null,null,"",""]
[null,null,null,null,null,null,null,null,"",""]
[null,null,null,null,null,null,null,null,"",""]
[null,null,null,null,null,null,null,null,"",""]
[null,null,null,null,null,null,null,null,"",""]
[null,null,null,null,null,null,null,null,"",""]
[null,null,null,null,null,null,null,null,"",""]
[null,null,null,null,null,null,null,null,"",""]
[null,null,null,null,null,null,null,null,"",""]
[null,null,null,null,null,null,null,null,{"$f":"IF(G516=\"\",\"\",(ROUND(DAYS360(G516,H516,1)/30,0) & \" MESES\"))","v":""},""]
[null,null,null,null,null,null,null,null,"",""]
[null,null,null,null,null,null,null,null,"",""]
[null,null,null,null,null,null,null,null,"",""]
[null,null,null,null,null,null,null,null,"",""]
[null,null,null,null,null,null,null,null,"",""]
[null,null,null,null,null,null,null,null,"",""]
[null,null,null,null,null,null,null,null,"",""]
[null,null,null,null,null,null,null,null,"",""]
[null,null,null,null,null,null,null,null,"",""]
[null,null,null,null,null,null,null,null,"",""]
[null,null,null,null,null,null,null,null,"",""]
[null,null,null,null,null,null,null,null,"",""]
[null,null,null,null,null,null,null,null,"",""]
[null,null,null,null,null,null,null,null,"",""]
[null,null,null,null,null,null,null,null,"",""]
[null,null,null,null,null,null,null,null,"",""]
[null,null,null,null,null,null,null,null,"",""]
[null,null,null,null,null,null,null,null,"",""]
[null,null,null,null,null,null,null,null,"",""]
[null,null,null,null,null,null,null,null,"",""]
[null,null,null,null,null,null,null,null,"",""]
[null,null,null,null,null,null,null,null,"",""]
[null,null,null,null,null,null,null,null,"",""]
[null,null,null,null,null,null,null,null,"",""]
[null,null,null,null,null,null,null,null,"",""]
[null,null,null,null,null,null,null,null,"",""]
[null,null,null,null,null,null,null,null,"",""]
[null,null,null,null,null,null,null,null,"",""]
[null,null,null,null,null,null,null,null,"",""]
[null,null,null,null,null,null,null,null,"",""]
[null,null,null,null,null,null,null,null,"",""]
[null,null,null,null,null,null,null,null,"",""]
[null,null,null,null,null,null,null,null,"",""]
[null,null,null,null,null,null,null,null,"",""]
[null,null,null,null,null,null,null,null,"",""]
[null,null,null,null,null,null,null,null,"",""]
[null,null,null,null,null,null,null,null,"",""]
[null,null,null,null,null,null,null,null,"",""]
[null,null,null,null,null,null,null,null,"",""]
[null,null,null,null,null,null,null,null,"",""]
[null,null,null,null,null,null,null,null,"",{"$f":"IF(G557=\"\",\"\",IF(H557=\"NO\",\"SIN FECHA\",IF(H557=\"\",\"SIN FECHA\",IF(TODAY()>H557,\"FINALIZADO\",IF(G557<=TODAY(),\"VIGENTE\",\"SIN INICIAR\")))))","v":""}]
[null,null,null,null,null,null,null,null,"",""]
[null,null,null,null,null,null,null,null,"",""]
[null,null,null,null,null,null,null,null,"",""]
[null,null,null,null,null,null,null,null,"",""]
[null,null,null,null,null,null,null,null,"",""]
[null,null,null,null,null,null,null,null,"",""]
[null,null,null,null,null,null,null,null,"",""]
[null,null,null,null,null,null,null,null,"",""]
[null,null,null,null,null,null,null,null,"",""]
[null,null,null,null,null,null,null,null,"",""]
[null,null,null,null,null,null,null,null,"",""]
[null,null,null,null,null,null,null,null,"",""]
[null,null,null,null,null,null,null,null,"",""]
[null,null,null,null,null,null,null,null,"",""]
[null,null,null,null,null,null,null,null,"",""]
[null,null,null,null,null,null,null,null,"",""]
[null,null,null,null,null,null,null,null,"",""]
[null,null,null,null,null,null,null,null,"",""]
[null,null,null,null,null,null,null,null,"",""]
[null,null,null,null,null,null,null,null,"",""]
[null,null,null,null,null,null,null,null,"",""]
[null,null,null,null,null,null,null,null,"",""]
[null,null,null,null,null,null,null,null,{"$f":"IF(G580=\"\",\"\",(ROUND(DAYS360(G580,H580,1)/30,0) & \" MESES\"))","v":""},""]
[null,null,null,null,null,null,null,null,"",""]
[null,null,null,null,null,null,null,null,"",""]
[null,null,null,null,null,null,null,null,"",""]
[null,null,null,null,null,null,null,null,"",""]
[null,null,null,null,null,null,null,null,"",""]
[null,null,null,null,null,null,null,null,"",""]
[null,null,null,null,null,null,null,null,"",""]
[null,null,null,null,null,null,null,null,"",""]
[null,null,null,null,null,null,null,null,"",""]
[null,null,null,null,null,null,null,null,"",""]
[null,null,null,null,null,null,null,null,"",""]
[null,null,null,null,null,null,null,null,"",""]
[null,null,null,null,null,null,null,null,"",""]
[null,null,null,null,null,null,null,null,"",""]
[null,null,null,null,null,null,null,null,"",""]
[null,null,null,null,null,null,null,null,"",""]
[null,null,null,null,null,null,null,null,"",""]
[null,null,null,null,null,null,null,null,"",""]
[null,null,null,null,null,null,null,null,"",""]
[null,null,null,null,null,null,null,null,"",""]
[null,null,null,null,null,null,null,null,"",""]
[null,null,null,null,null,null,null,null,"",""]
[null,null,null,null,null,null,null,null,"",""]
[null,null,null,null,null,null,null,null,"",""]
[null,null,null,null,null,null,null,null,"",""]
[null,null,null,null,null,null,null,null,"",""]
[null,null,null,null,null,null,null,null,"",""]
[null,null,null,null,null,null,null,null,"",""]
[null,null,null,null,null,null,null,null,"",""]
[null,null,null,null,null,null,null,null,"",""]
[null,null,null,null,null,null,null,null,"",""]
[null,null,null,null,null,null,null,null,"",""]
[null,null,null,null,null,null,null,null,"",""]
[null,null,null,null,null,null,null,null,"",""]
[null,null,null,null,null,null,null,null,"",""]
[null,null,null,null,null,null,null,null,"",""]
[null,null,null,null,null,null,null,null,"",""]
[null,null,null,null,null,null,null,null,"",""]
[null,null,null,null,null,null,null,null,"",""]
[null,null,null,null,null,null,null,null,"",""]
[null,null,null,null,null,null,null,null,"",{"$f":"IF(G621=\"\",\"\",IF(H621=\"NO\",\"SIN FECHA\",IF(H621=\"\",\"SIN FECHA\",IF(TODAY()>H621,\"FINALIZADO\",IF(G621<=TODAY(),\"VIGENTE\",\"SIN INICIAR\")))))","v":""}]
[null,null,null,null,null,null,null,null,"",""]
[null,null,null,null,null,null,null,null,"",""]
[null,null,null,null,null,null,null,null,"",""]
[null,null,null,null,null,null,null,null,"",""]
[null,null,null,null,null,null,null,null,"",""]
[null,null,null,null,null,null,null,null,"",""]
[null,null,null,null,null,null,null,null,"",""]
[null,null,null,null,null,null,null,null,"",""]
[null,null,null,null,null,null,null,null,"",""]
[null,null,null,null,null,null,null,null,"",""]
[null,null,null,null,null,null,null,null,"",""]
[null,null,null,null,null,null,null,null,"",""]
[null,null,null,null,null,null,null,null,"",""]
[null,null,null,null,null,null,null,null,"",""]
[null,null,null,null,null,null,null,null,"",""]
[null,null,null,null,null,null,null,null,"",""]
[null,null,null,null,null,null,null,null,"",""]
[null,null,null,null,null,null,null,null,"",""]
[null,null,null,null,null,null,null,null,"",""]
[null,null,null,null,null,null,null,null,"",""]
[null,null,null,null,null,null,null,null,"",""]
[null,null,null,null,null,null,null,null,"",""]
[null,null,null,null,null,null,null,null,{"$f":"IF(G644=\"\",\"\",(ROUND(DAYS360(G644,H644,1)/30,0) & \" MESES\"))","v":""},""]
[null,null,null,null,null,null,null,null,"",""]
[null,null,null,null,null,null,null,null,"",""]
[null,null,null,null,null,null,null,null,"",""]
[null,null,null,null,null,null,null,null,"",""]
[null,null,null,null,null,null,null,null,"",""]
[null,null,null,null,null,null,null,null,"",""]
[null,null,null,null,null,null,null,null,"",""]
[null,null,null,null,null,null,null,null,"",""]
[null,null,null,null,null,null,null,null,"",""]
[null,null,null,null,null,null,null,null,"",""]
[null,null,null,null,null,null,null,null,"",""]
[null,null,null,null,null,null,null,null,"",""]
[null,null,null,null,null,null,null,null,"",""]
[null,null,null,null,null,null,null,null,"",""]
[null,null,null,null,null,null,null,null,"",""]
[null,null,null,null,null,null,null,null,"",""]
[null,null,null,null,null,null,null,null,"",""]
[null,null,null,null,null,null,null,null,"",""]
[null,null,null,null,null,null,null,null,"",""]
[null,null,null,null,null,null,null,null,"",""]
[null,null,null,null,null,null,null,null,"",""]
[null,null,null,null,null,null,null,null,"",""]
[null,null,null,null,null,null,null,null,"",""]
[null,null,null,null,null,null,null,null,"",""]
[null,null,null,null,null,null,null,null,"",""]
[null,null,null,null,null,null,null,null,"",""]
[null,null,null,null,null,null,null,null,"",""]
[null,null,null,null,null,null,null,null,"",""]
[null,null,null,null,null,null,null,null,"",""]
[null,null,null,null,null,null,null,null,"",""]
[null,null,null,null,null,null,null,null,"",""]
[null,null,null,null,null,null,null,null,"",""]
[null,null,null,null,null,null,null,null,"",""]
[null,null,null,null,null,null,null,null,"",""]
[null,null,null,null,null,null,null,null,"",""]
[null,null,null,null,null,null,null,null,"",""]
[null,null,null,null,null,null,null,null,"",""]
[null,null,null,null,null,null,null,null,"",""]
[null,null,null,null,null,null,null,null,"",""]
[null,null,null,null,null,null,null,null,"",""]
[null,null,null,null,null,null,null,null,"",{"$f":"IF(G685=\"\",\"\",IF(H685=\"NO\",\"SIN FECHA\",IF(H685=\"\",\"SIN FECHA\",IF(TODAY()>H685,\"FINALIZADO\",IF(G685<=TODAY(),\"VIGENTE\",\"SIN INICIAR\")))))","v":""}]
[null,null,null,null,null,null,null,null,"",""]
[null,null,null,null,null,null,null,null,"",""]
[null,null,null,null,null,null,null,null,"",""]
[null,null,null,null,null,null,null,null,"",""]
[null,null,null,null,null,null,null,null,"",""]
[null,null,null,null,null,null,null,null,"",""]
[null,null,null,null,null,null,null,null,"",""]
[null,null,null,null,null,null,null,null,"",""]
[null,null,null,null,null,null,null,null,"",""]
[null,null,null,null,null,null,null,null,"",""]
[null,null,null,null,null,null,null,null,"",""]
[null,null,null,null,null,null,null,null,"",""]
[null,null,null,null,null,null,null,null,"",""]
[null,null,null,null,null,null,null,null,"",""]
[null,null,null,null,null,null,null,null,"",""]
[null,null,null,null,null,null,null,null,"",""]
[null,null,null,null,null,null,null,null,"",""]
[null,null,null,null,null,null,null,null,"",""]
[null,null,null,null,null,null,null,null,"",""]
[null,null,null,null,null,null,null,null,"",""]
[null,null,null,null,null,null,null,null,"",""]
[null,null,null,null,null,null,null,null,"",""]
[null,null,null,null,null,null,null,null,{"$f":"IF(G708=\"\",\"\",(ROUND(DAYS360(G708,H708,1)/30,0) & \" MESES\"))","v":""},""]
[null,null,null,null,null,null,null,null,"",""]
[null,null,null,null,null,null,null,null,"",""]
[null,null,null,null,null,null,null,null,"",""]
[null,null,null,null,null,null,null,null,"",""]
[null,null,null,null,null,null,null,null,"",""]
[null,null,null,null,null,null,null,null,"",""]
[null,null,null,null,null,null,null,null,"",""]
[null,null,null,null,null,null,null,null,"",""]
[null,null,null,null,null,null,null,null,"",""]
[null,null,null,null,null,null,null,null,"",""]
[null,null,null,null,null,null,null,null,"",""]
[null,null,null,null,null,null,null,null,"",""]
[null,null,null,null,null,null,null,null,"",""]
[null,null,null,null,null,null,null,null,"",""]
[null,null,null,null,null,null,null,null,"",""]
[null,null,null,null,null,null,null,null,"",""]
[null,null,null,null,null,null,null,null,"",""]
[null,null,null,null,null,null,null,null,"",""]
[null,null,null,null,null,null,null,null,"",""]
[null,null,null,null,null,null,null,null,"",""]
[null,null,null,null,null,null,null,null,"",""]
[null,null,null,null,null,null,null,null,"",""]
[null,null,null,null,null,null,null,null,"",""]
[null,null,null,null,null,null,null,null,"",""]
[null,null,null,null,null,null,null,null,"",""]
[null,null,null,null,null,null,null,null,"",""]
[null,null,null,null,null,null,null,null,"",""]
[null,null,null,null,null,null,null,null,"",""]
[null,null,null,null,null,null,null,null,"",""]
[null,null,null,null,null,null,null,null,"",""]
[null,null,null,null,null,null,null,null,"",""]
[null,null,null,null,null,null,null,null,"",""]
[null,null,null,null,null,null,null,null,"",""]
[null,null,null,null,null,null,null,null,"",""]
[null,null,null,null,null,null,null,null,"",""]
[null,null,null,null,null,null,null,null,"",""]
[null,null,null,null,null,null,null,null,"",""]
[null,null,null,null,null,null,null,null,"",""]
[null,null,null,null,null,null,null,null,"",""]
[null,null,null,null,null,null,null,null,"",""]
[null,null,null,null,null,null,null,null,"",{"$f":"IF(G749=\"\",\"\",IF(H749=\"NO\",\"SIN FECHA\",IF(H749=\"\",\"SIN FECHA\",IF(TODAY()>H749,\"FINALIZADO\",IF(G749<=TODAY(),\"VIGENTE\",\"SIN INICIAR\")))))","v":""}]
[null,null,null,null,null,null,null,null,"",""]
[null,null,null,null,null,null,null,null,"",""]
[null,null,null,null,null,null,null,null,"",""]
[null,null,null,null,null,null,null,null,"",""]
[null,null,null,null,null,null,null,null,"",""]
[null,null,null,null,null,null,null,null,"",""]
[null,null,null,null,null,null,null,null,"",""]
[null,null,null,null,null,null,null,null,"",""]
[null,null,null,null,null,null,null,null,"",""]
[null,null,null,null,null,null,null,null,"",""]
[null,null,null,null,null,null,null,null,"",""]
[null,null,null,null,null,null,null,null,"",""]
[null,null,null,null,null,null,null,null,"",""]
[null,null,null,null,null,null,null,null,"",""]
[null,null,null,null,null,null,null,null,"",""]
[null,null,null,null,null,null,null,null,"",""]
[null,null,null,null,null,null,null,null,"",""]
[null,null,null,null,null,null,null,null,"",""]
[null,null,null,null,null,null,null,null,"",""]
[null,null,null,null,null,null,null,null,"",""]
[null,null,null,null,null,null,null,null,"",""]
[null,null,null,null,null,null,null,null,"",""]
[null,null,null,null,null,null,null,null,{"$f":"IF(G772=\"\",\"\",(ROUND(DAYS360(G772,H772,1)/30,0) & \" MESES\"))","v":""},""]
[null,null,null,null,null,null,null,null,"",""]
[null,null,null,null,null,null,null,null,"",""]
[null,null,null,null,null,null,null,null,"",""]
[null,null,null,null,null,null,null,null,"",""]
[null,null,null,null,null,null,null,null,"",""]
[null,null,null,null,null,null,null,null,"",""]
[null,null,null,null,null,null,null,null,"",""]
[null,null,null,null,null,null,null,null,"",""]
[null,null,null,null,null,null,null,null,"",""]
[null,null,null,null,null,null,null,null,"",""]
[null,null,null,null,null,null,null,null,"",""]
[null,null,null,null,null,null,null,null,"",""]
[null,null,null,null,null,null,null,null,"",""]
[null,null,null,null,null,null,null,null,"",""]
[null,null,null,null,null,null,null,null,"",""]
[null,null,null,null,null,null,null,null,"",""]
[null,null,null,null,null,null,null,null,"",""]
[null,null,null,null,null,null,null,null,"",""]
[null,null,null,null,null,null,null,null,"",""]
[null,null,null,null,null,null,null,null,"",""]
[null,null,null,null,null,null,null,null,"",""]
[null,null,null,null,null,null,null,null,"",""]
[null,null,null,null,null,null,null,null,"",""]
[null,null,null,null,null,null,null,null,"",""]
[null,null,null,null,null,null,null,null,"",""]
[null,null,null,null,null,null,null,null,"",""]
[null,null,null,null,null,null,null,null,"",""]
[null,null,null,null,null,null,null,null,"",""]
[null,null,null,null,null,null,null,null,"",""]
[null,null,null,null,null,null,null,null,"",""]
[null,null,null,null,null,null,null,null,"",""]
[null,null,null,null,null,null,null,null,"",""]
[null,null,null,null,null,null,null,null,"",""]
[null,null,null,null,null,null,null,null,"",""]
[null,null,null,null,null,null,null,null,"",""]
[null,null,null,null,null,null,null,null,"",""]
[null,null,null,null,null,null,null,null,"",""]
[null,null,null,null,null,null,null,null,"",""]
[null,null,null,null,null,null,null,null,"",""]
[null,null,null,null,null,null,null,null,"",""]
[null,null,null,null,null,null,null,null,"",{"$f":"IF(G813=\"\",\"\",IF(H813=\"NO\",\"SIN FECHA\",IF(H813=\"\",\"SIN FECHA\",IF(TODAY()>H813,\"FINALIZADO\",IF(G813<=TODAY(),\"VIGENTE\",\"SIN INICIAR\")))))","v":""}]
[null,null,null,null,null,null,null,null,"",""]
[null,null,null,null,null,null,null,null,"",""]
[null,null,null,null,null,null,null,null,"",""]
[null,null,null,null,null,null,null,null,"",""]
[null,null,null,null,null,null,null,null,"",""]
[null,null,null,null,null,null,null,null,"",""]
[null,null,null,null,null,null,null,null,"",""]
[null,null,null,null,null,null,null,null,"",""]
[null,null,null,null,null,null,null,null,"",""]
[null,null,null,null,null,null,null,null,"",""]
[null,null,null,null,null,null,null,null,"",""]
[null,null,null,null,null,null,null,null,"",""]
[null,null,null,null,null,null,null,null,"",""]
[null,null,null,null,null,null,null,null,"",""]
[null,null,null,null,null,null,null,null,"",""]
[null,null,null,null,null,null,null,null,"",""]
[null,null,null,null,null,null,null,null,"",""]
[null,null,null,null,null,null,null,null,"",""]
[null,null,null,null,null,null,null,null,"",""]
[null,null,null,null,null,null,null,null,"",""]
[null,null,null,null,null,null,null,null,"",""]
[null,null,null,null,null,null,null,null,"",""]
[null,null,null,null,null,null,null,null,{"$f":"IF(G836=\"\",\"\",(ROUND(DAYS360(G836,H836,1)/30,0) & \" MESES\"))","v":""},""]
[null,null,null,null,null,null,null,null,"",""]
[null,null,null,null,null,null,null,null,"",""]
[null,null,null,null,null,null,null,null,"",""]
[null,null,null,null,null,null,null,null,"",""]
[null,null,null,null,null,null,null,null,"",""]
[null,null,null,null,null,null,null,null,"",""]
[null,null,null,null,null,null,null,null,"",""]
[null,null,null,null,null,null,null,null,"",""]
[null,null,null,null,null,null,null,null,"",""]
[null,null,null,null,null,null,null,null,"",""]
[null,null,null,null,null,null,null,null,"",""]
[null,null,null,null,null,null,null,null,"",""]
[null,null,null,null,null,null,null,null,"",""]
[null,null,null,null,null,null,null,null,"",""]
[null,null,null,null,null,null,null,null,"",""]
[null,null,null,null,null,null,null,null,"",""]
[null,null,null,null,null,null,null,null,"",""]
[null,null,null,null,null,null,null,null,"",""]
[null,null,null,null,null,null,null,null,"",""]
[null,null,null,null,null,null,null,null,"",""]
[null,null,null,null,null,null,null,null,"",""]
[null,null,null,null,null,null,null,null,"",""]
[null,null,null,null,null,null,null,null,"",""]
[null,null,null,null,null,null,null,null,"",""]
[null,null,null,null,null,null,null,null,"",""]
[null,null,null,null,null,null,null,null,"",""]
[null,null,null,null,null,null,null,null,"",""]
[null,null,null,null,null,null,null,null,"",""]
[null,null,null,null,null,null,null,null,"",""]
[null,null,null,null,null,null,null,null,"",""]
[null,null,null,null,null,null,null,null,"",""]
[null,null,null,null,null,null,null,null,"",""]
[null,null,null,null,null,null,null,null,"",""]
[null,null,null,null,null,null,null,null,"",""]
[null,null,null,null,null,null,null,null,"",""]
[null,null,null,null,null,null,null,null,"",""]
[null,null,null,null,null,null,null,null,"",""]
[null,null,null,null,null,null,null,null,"",""]
[null,null,null,null,null,null,null,null,"",""]
[null,null,null,null,null,null,null,null,"",""]
[null,null,null,null,null,null,null,null,"",{"$f":"IF(G877=\"\",\"\",IF(H877=\"NO\",\"SIN FECHA\",IF(H877=\"\",\"SIN FECHA\",IF(TODAY()>H877,\"FINALIZADO\",IF(G877<=TODAY(),\"VIGENTE\",\"SIN INICIAR\")))))","v":""}]
[null,null,null,null,null,null,null,null,"",""]
[null,null,null,null,null,null,null,null,"",""]
[null,null,null,null,null,null,null,null,"",""]
[null,null,null,null,null,null,null,null,"",""]
[null,null,null,null,null,null,null,null,"",""]
[null,null,null,null,null,null,null,null,"",""]
[null,null,null,null,null,null,null,null,"",""]
[null,null,null,null,null,null,null,null,"",""]
[null,null,null,null,null,null,null,null,"",""]
[null,null,null,null,null,null,null,null,"",""]
[null,null,null,null,null,null,null,null,"",""]
[null,null,null,null,null,null,null,null,"",""]
[null,null,null,null,null,null,null,null,"",""]
[null,null,null,null,null,null,null,null,"",""]
[null,null,null,null,null,null,null,null,"",""]
[null,null,null,null,null,null,null,null,"",""]
[null,null,null,null,null,null,null,null,"",""]
[null,null,null,null,null,null,null,null,"",""]
[null,null,null,null,null,null,null,null,"",""]
[null,null,null,null,null,null,null,null,"",""]
[null,null,null,null,null,null,null,null,"",""]
[null,null,null,null,null,null,null,null,"",""]
[null,null,null,null,null,null,null,null,{"$f":"IF(G900=\"\",\"\",(ROUND(DAYS360(G900,H900,1)/30,0) & \" MESES\"))","v":""},""]
[null,null,null,null,null,null,null,null,"",""]
[null,null,null,null,null,null,null,null,"",""]
[null,null,null,null,null,null,null,null,"",""]
[null,null,null,null,null,null,null,null,"",""]
[null,null,null,null,null,null,null,null,"",""]
[null,null,null,null,null,null,null,null,"",""]
[null,null,null,null,null,null,null,null,"",""]
[null,null,null,null,null,null,null,null,"",""]
[null,null,null,null,null,null,null,null,"",""]
[null,null,null,null,null,null,null,null,"",""]
[null,null,null,null,null,null,null,null,"",""]
[null,null,null,null,null,null,null,null,"",""]
[null,null,null,null,null,null,null,null,"",""]
[null,null,null,null,null,null,null,null,"",""]
[null,null,null,null,null,null,null,null,"",""]
[null,null,null,null,null,null,null,null,"",""]
[null,null,null,null,null,null,null,null,"",""]
[null,null,null,null,null,null,null,null,"",""]
[null,null,null,null,null,null,null,null,"",""]
[null,null,null,null,null,null,null,null,"",""]
[null,null,null,null,null,null,null,null,"",""]
[null,null,null,null,null,null,null,null,"",""]
[null,null,null,null,null,null,null,null,"",""]
[null,null,null,null,null,null,null,null,"",""]
[null,null,null,null,null,null,null,null,"",""]
[null,null,null,null,null,null,null,null,"",""]
[null,null,null,null,null,null,null,null,"",""]
[null,null,null,null,null,null,null,null,"",""]
[null,null,null,null,null,null,null,null,"",""]
[null,null,null,null,null,null,null,null,"",""]
[null,null,null,null,null,null,null,null,"",""]
[null,null,null,null,null,null,null,null,"",""]
[null,null,null,null,null,null,null,null,"",""]
[null,null,null,null,null,null,null,null,"",""]
[null,null,null,null,null,null,null,null,"",""]
[null,null,null,null,null,null,null,null,"",""]
[null,null,null,null,null,null,null,null,"",""]
[null,null,null,null,null,null,null,null,"",""]
[null,null,null,null,null,null,null,null,"",""]
[null,null,null,null,null,null,null,null,"",""]
[null,null,null,null,null,null,null,null,"",{"$f":"IF(G941=\"\",\"\",IF(H941=\"NO\",\"SIN FECHA\",IF(H941=\"\",\"SIN FECHA\",IF(TODAY()>H941,\"FINALIZADO\",IF(G941<=TODAY(),\"VIGENTE\",\"SIN INICIAR\")))))","v":""}]
[null,null,null,null,null,null,null,null,"",""]
[null,null,null,null,null,null,null,null,"",""]
[null,null,null,null,null,null,null,null,"",""]
[null,null,null,null,null,null,null,null,"",""]
[null,null,null,null,null,null,null,null,"",""]
[null,null,null,null,null,null,null,null,"",""]
[null,null,null,null,null,null,null,null,"",""]
[null,null,null,null,null,null,null,null,"",""]
[null,null,null,null,null,null,null,null,"",""]
[null,null,null,null,null,null,null,null,"",""]
[null,null,null,null,null,null,null,null,"",""]
[null,null,null,null,null,null,null,null,"",""]
[null,null,null,null,null,null,null,null,"",""]
[null,null,null,null,null,null,null,null,"",""]
[null,null,null,null,null,null,null,null,"",""]
[null,null,null,null,null,null,null,null,"",""]
[null,null,null,null,null,null,null,null,"",""]
[null,null,null,null,null,null,null,null,"",""]
[null,null,null,null,null,null,null,null,"",""]
[null,null,null,null,null,null,null,null,"",""]
[null,null,null,null,null,null,null,null,"",""]
[null,null,null,null,null,null,null,null,"",""]
[null,null,null,null,null,null,null,null,{"$f":"IF(G964=\"\",\"\",(ROUND(DAYS360(G964,H964,1)/30,0) & \" MESES\"))","v":""},""]
[null,null,null,null,null,null,null,null,"",""]
[null,null,null,null,null,null,null,null,"",""]
[null,null,null,null,null,null,null,null,"",""]
[null,null,null,null,null,null,null,null,"",""]
[null,null,null,null,null,null,null,null,"",""]
[null,null,null,null,null,null,null,null,"",""]
[null,null,null,null,null,null,null,null,"",""]
[null,null,null,null,null,null,null,null,"",""]
[null,null,null,null,null,null,null,null,"",""]
[null,null,null,null,null,null,null,null,"",""]
[null,null,null,null,null,null,null,null,"",""]
[null,null,null,null,null,null,null,null,"",""]
[null,null,null,null,null,null,null,null,"",""]
[null,null,null,null,null,null,null,null,"",""]
[null,null,null,null,null,null,null,null,"",""]
[null,null,null,null,null,null,null,null,"",""]
[null,null,null,null,null,null,null,null,"",""]
[null,null,null,null,null,null,null,null,"",""]
[null,null,null,null,null,null,null,null,"",""]
[null,null,null,null,null,null,null,null,"",""]
[null,null,null,null,null,null,null,null,"",""]
[null,null,null,null,null,null,null,null,"",""]
[null,null,null,null,null,null,null,null,"",""]
[null,null,null,null,null,null,null,null,"",""]
[null,null,null,null,null,null,null,null,"",""]
[null,null,null,null,null,null,null,null,"",""]
[null,null,null,null,null,null,null,null,"",""]
[null,null,null,null,null,null,null,null,"",""]
[null,null,null,null,null,null,null,null,"",""]
[null,null,null,null,null,null,null,null,"",""]
[null,null,null,null,null,null,null,null,"",""]
[null,null,null,null,null,null,null,null,"",""]
[null,null,null,null,null,null,null,null,"",""]
[null,null,null,null,null,null,null,null,"",""]
[null,null,null,null,null,null,null,null,"",""]
[null,null,null,null,null,null,null,null,"",""]
[null,null,null,null,null,null,null,null,"",""]
[null,null,null,null,null,null,null,null,"",""]
[null,null,null,null,null,null,null,null,"",""]
[null,null,null,null,null,null,null,null,"",""]
[null,null,null,null,null,null,null,null,"",{"$f":"IF(G1005=\"\",\"\",IF(H1005=\"NO\",\"SIN FECHA\",IF(H1005=\"\",\"SIN FECHA\",IF(TODAY()>H1005,\"FINALIZADO\",IF(G1005<=TODAY(),\"VIGENTE\",\"SIN INICIAR\")))))","v":""}]
[null,null,null,null,null,null,null,null,"",""]
[null,null,null,null,null,null,null,null,"",""]
[null,null,null,null,null,null,null,null,"",""]
[null,null,null,null,null,null,null,null,"",""]
[null,null,null,null,null,null,null,null,"",""]
[null,null,null,null,null,null,null,null,"",""]
[null,null,null,null,null,null,null,null,"",""]
[null,null,null,null,null,null,null,null,"",""]
[null,null,null,null,null,null,null,null,"",""]
[null,null,null,null,null,null,null,null,"",""]
[null,null,null,null,null,null,null,null,"",""]
[null,null,null,null,null,null,null,null,"",""]
[null,null,null,null,null,null,null,null,"",""]
[null,null,null,null,null,null,null,null,"",""]
[null,null,null,null,null,null,null,null,"",""]
[null,null,null,null,null,null,null,null,"",""]
[null,null,null,null,null,null,null,null,"",""]
[null,null,null,null,null,null,null,null,"",""]
[null,null,null,null,null,null,null,null,"",""]
[null,null,null,null,null,null,null,null,"",""]
[null,null,null,null,null,null,null,null,"",""]
[null,null,null,null,null,null,null,null,"",""]
[null,null,null,null,null,null,null,null,{"$f":"IF(G1028=\"\",\"\",(ROUND(DAYS360(G1028,H1028,1)/30,0) & \" MESES\"))","v":""},""]
[null,null,null,null,null,null,null,null,"",""]
[null,null,null,null,null,null,null,null,"",""]
[null,null,null,null,null,null,null,null,"",""]
[null,null,null,null,null,null,null,null,"",""]
[null,null,null,null,null,null,null,null,"",""]
[null,null,null,null,null,null,null,null,"",""]
[null,null,null,null,null,null,null,null,"",""]
[null,null,null,null,null,null,null,null,"",""]
[null,null,null,null,null,null,null,null,"",""]
[null,null,null,null,null,null,null,null,"",""]
[null,null,null,null,null,null,null,null,"",""]
[null,null,null,null,null,null,null,null,"",""]
[null,null,null,null,null,null,null,null,"",""]
[null,null,null,null,null,null,null,null,"",""]
[null,null,null,null,null,null,null,null,"",""]
[null,null,null,null,null,null,null,null,"",""]
[null,null,null,null,null,null,null,null,"",""]
[null,null,null,null,null,null,null,null,"",""]
[null,null,null,null,null,null,null,null,"",""]
[null,null,null,null,null,null,null,null,"",""]
[null,null,null,null,null,null,null,null,"",""]
[null,null,null,null,null,null,null,null,"",""]
[null,null,null,null,null,null,null,null,"",""]
[null,null,null,null,null,null,null,null,"",""]
[null,null,null,null,null,null,null,null,"",""]
[null,null,null,null,null,null,null,null,"",""]
[null,null,null,null,null,null,null,null,"",""]
[null,null,null,null,null,null,null,null,"",""]
[null,null,null,null,null,null,null,null,"",""]
[null,null,null,null,null,null,null,null,"",""]
[null,null,null,null,null,null,null,null,"",""]
[null,null,null,null,null,null,null,null,"",""]
[null,null,null,null,null,null,null,null,"",""]
[null,null,null,null,null,null,null,null,"",""]
[null,null,null,null,null,null,null,null,"",""]
[null,null,null,null,null,null,null,null,"",""]
[null,null,null,null,null,null,null,null,"",""]
[null,null,null,null,null,null,null,null,"",""]
[null,null,null,null,null,null,null,null,"",""]
[null,null,null,null,null,null,null,null,"",""]
[null,null,null,null,null,null,null,null,"",{"$f":"IF(G1069=\"\",\"\",IF(H1069=\"NO\",\"SIN FECHA\",IF(H1069=\"\",\"SIN FECHA\",IF(TODAY()>H1069,\"FINALIZADO\",IF(G1069<=TODAY(),\"VIGENTE\",\"SIN INICIAR\")))))","v":""}]
[null,null,null,null,null,null,null,null,"",""]
[null,null,null,null,null,null,null,null,"",""]
[null,null,null,null,null,null,null,null,"",""]
[null,null,null,null,null,null,null,null,"",""]
[null,null,null,null,null,null,null,null,"",""]
[null,null,null,null,null,null,null,null,"",""]
[null,null,null,null,null,null,null,null,"",""]
[null,null,null,null,null,null,null,null,"",""]
[null,null,null,null,null,null,null,null,"",""]
[null,null,null,null,null,null,null,null,"",""]
[null,null,null,null,null,null,null,null,"",""]
[null,null,null,null,null,null,null,null,"",""]
[null,null,null,null,null,null,null,null,"",""]
[null,null,null,null,null,null,null,null,"",""]
[null,null,null,null,null,null,null,null,"",""]
[null,null,null,null,null,null,null,null,"",""]
[null,null,null,null,null,null,null,null,"",""]
[null,null,null,null,null,null,null,null,"",""]
[null,null,null,null,null,null,null,null,"",""]
[null,null,null,null,null,null,null,null,"",""]
[null,null,null,null,null,null,null,null,"",""]
[null,null,null,null,null,null,null,null,"",""]
[null,null,null,null,null,null,null,null,{"$f":"IF(G1092=\"\",\"\",(ROUND(DAYS360(G1092,H1092,1)/30,0) & \" MESES\"))","v":""},""]
[null,null,null,null,null,null,null,null,"",""]
[null,null,null,null,null,null,null,null,"",""]
[null,null,null,null,null,null,null,null,"",""]
[null,null,null,null,null,null,null,null,"",""]
[null,null,null,null,null,null,null,null,"",""]
[null,null,null,null,null,null,null,null,"",""]
[null,null,null,null,null,null,null,null,"",""]
[null,null,null,null,null,null,null,null,"",""]
[null,null,null,null,null,null,null,null,"",""]
[null,null,null,null,null,null,null,null,"",""]
[null,null,null,null,null,null,null,null,"",""]
[null,null,null,null,null,null,null,null,"",""]
[null,null,null,null,null,null,null,null,"",""]
[null,null,null,null,null,null,null,null,"",""]
[null,null,null,null,null,null,null,null,"",""]
[null,null,null,null,null,null,null,null,"",""]
[null,null,null,null,null,null,null,null,"",""]
[null,null,null,null,null,null,null,null,"",""]
[null,null,null,null,null,null,null,null,"",""]
[null,null,null,null,null,null,null,null,"",""]
[null,null,null,null,null,null,null,null,"",""]
[null,null,null,null,null,null,null,null,"",""]
[null,null,null,null,null,null,null,null,"",""]
[null,null,null,null,null,null,null,null,"",""]
[null,null,null,null,null,null,null,null,"",""]
[null,null,null,null,null,null,null,null,"",""]
[null,null,null,null,null,null,null,null,"",""]
[null,null,null,null,null,null,null,null,"",""]
[null,null,null,null,null,null,null,null,"",""]
[null,null,null,null,null,null,null,null,"",""]
[null,null,null,null,null,null,null,null,"",""]
[null,null,null,null,null,null,null,null,"",""]
[null,null,null,null,null,null,null,null,"",""]
[null,null,null,null,null,null,null,null,"",""]
[null,null,null,null,null,null,null,null,"",""]
[null,null,null,null,null,null,null,null,"",""]
[null,null,null,null,null,null,null,null,"",""]
[null,null,null,null,null,null,null,null,"",""]
[null,null,null,null,null,null,null,null,"",""]
[null,null,null,null,null,null,null,null,"",""]
[null,null,null,null,null,null,null,null,"",{"$f":"IF(G1133=\"\",\"\",IF(H1133=\"NO\",\"SIN FECHA\",IF(H1133=\"\",\"SIN FECHA\",IF(TODAY()>H1133,\"FINALIZADO\",IF(G1133<=TODAY(),\"VIGENTE\",\"SIN INICIAR\")))))","v":""}]
[null,null,null,null,null,null,null,null,"",""]
[null,null,null,null,null,null,null,null,"",""]
[null,null,null,null,null,null,null,null,"",""]
[null,null,null,null,null,null,null,null,"",""]
[null,null,null,null,null,null,null,null,"",""]
[null,null,null,null,null,null,null,null,"",""]
[null,null,null,null,null,null,null,null,"",""]
[null,null,null,null,null,null,null,null,"",""]
[null,null,null,null,null,null,null,null,"",""]
[null,null,null,null,null,null,null,null,"",""]
[null,null,null,null,null,null,null,null,"",""]
[null,null,null,null,null,null,null,null,"",""]
[null,null,null,null,null,null,null,null,"",""]
[null,null,null,null,null,null,null,null,"",""]
[null,null,null,null,null,null,null,null,"",""]
[null,null,null,null,null,null,null,null,"",""]
[null,null,null,null,null,null,null,null,"",""]
[null,null,null,null,null,null,null,null,"",""]
[null,null,null,null,null,null,null,null,"",""]
[null,null,null,null,null,null,null,null,"",""]
[null,null,null,null,null,null,null,null,"",""]
[null,null,null,null,null,null,null,null,"",""]
[null,null,null,null,null,null,null,null,{"$f":"IF(G1156=\"\",\"\",(ROUND(DAYS360(G1156,H1156,1)/30,0) & \" MESES\"))","v":""},""]
[null,null,null,null,null,null,null,null,"",""]
[null,null,null,null,null,null,null,null,"",""]
[null,null,null,null,null,null,null,null,"",""]
[null,null,null,null,null,null,null,null,"",""]
[null,null,null,null,null,null,null,null,"",""]
[null,null,null,null,null,null,null,null,"",""]
[null,null,null,null,null,null,null,null,"",""]
[null,null,null,null,null,null,null,null,"",""]
[null,null,null,null,null,null,null,null,"",""]
[null,null,null,null,null,null,null,null,"",""]
[null,null,null,null,null,null,null,null,"",""]
[null,null,null,null,null,null,null,null,"",""]
[null,null,null,null,null,null,null,null,"",""]
[null,null,null,null,null,null,null,null,"",""]
[null,null,null,null,null,null,null,null,"",""]
[null,null,null,null,null,null,null,null,"",""]
[null,null,null,null,null,null,null,null,"",""]
[null,null,null,null,null,null,null,null,"",""]
[null,null,null,null,null,null,null,null,"",""]
[null,null,null,null,null,null,null,null,"",""]
[null,null,null,null,null,null,null,null,"",""]
[null,null,null,null,null,null,null,null,"",""]
[null,null,null,null,null,null,null,null,"",""]
[null,null,null,null,null,null,null,null,"",""]
[null,null,null,null,null,null,null,null,"",""]
[null,null,null,null,null,null,null,null,"",""]
[null,null,null,null,null,null,null,null,"",""]
[null,null,null,null,null,null,null,null,"",""]
[null,null,null,null,null,null,null,null,"",""]
[null,null,null,null,null,null,null,null,"",""]
[null,null,null,null,null,null,null,null,"",""]
[null,null,null,null,null,null,null,null,"",""]
[null,null,null,null,null,null,null,null,"",""]
[null,null,null,null,null,null,null,null,"",""]
[null,null,null,null,null,null,null,null,"",""]
[null,null,null,null,null,null,null,null,"",""]
[null,null,null,null,null,null,null,null,"",""]
[null,null,null,null,null,null,null,null,"",""]
[null,null,null,null,null,null,null,null,"",""]
[null,null,null,null,null,null,null,null,"",""]
[null,null,null,null,null,null,null,null,"",{"$f":"IF(G1197=\"\",\"\",IF(H1197=\"NO\",\"SIN FECHA\",IF(H1197=\"\",\"SIN FECHA\",IF(TODAY()>H1197,\"FINALIZADO\",IF(G1197<=TODAY(),\"VIGENTE\",\"SIN INICIAR\")))))","v":""}]
[null,null,null,null,null,null,null,null,"",""]
[null,null,null,null,null,null,null,null,"",""]
[null,null,null,null,null,null,null,null,"",""]
[null,null,null,null,null,null,null,null,"",""]
[null,null,null,null,null,null,null,null,"",""]
[null,null,null,null,null,null,null,null,"",""]
[null,null,null,null,null,null,null,null,"",""]
[null,null,null,null,null,null,null,null,"",""]
[null,null,null,null,null,null,null,null,"",""]
[null,null,null,null,null,null,null,null,"",""]
[null,null,null,null,null,null,null,null,"",""]
[null,null,null,null,null,null,null,null,"",""]
[null,null,null,null,null,null,null,null,"",""]
[null,null,null,null,null,null,null,null,"",""]
[null,null,null,null,null,null,null,null,"",""]
[null,null,null,null,null,null,null,null,"",""]
[null,null,null,null,null,null,null,null,"",""]
[null,null,null,null,null,null,null,null,"",""]
[null,null,null,null,null,null,null,null,"",""]
[null,null,null,null,null,null,null,null,"",""]
[null,null,null,null,null,null,null,null,"",""]
[null,null,null,null,null,null,null,null,"",""]
[null,null,null,null,null,null,null,null,{"$f":"IF(G1220=\"\",\"\",(ROUND(DAYS360(G1220,H1220,1)/30,0) & \" MESES\"))","v":""},""]
[null,null,null,null,null,null,null,null,"",""]
[null,null,null,null,null,null,null,null,"",""]
[null,null,null,null,null,null,null,null,"",""]
[null,null,null,null,null,null,null,null,"",""]
[null,null,null,null,null,null,null,null,"",""]
[null,null,null,null,null,null,null,null,"",""]
[null,null,null,null,null,null,null,null,"",""]
[null,null,null,null,null,null,null,null,"",""]
[null,null,null,null,null,null,null,null,"",""]
[null,null,null,null,null,null,null,null,"",""]
[null,null,null,null,null,null,null,null,"",""]
[null,null,null,null,null,null,null,null,"",""]
[null,null,null,null,null,null,null,null,"",""]
[null,null,null,null,null,null,null,null,"",""]
[null,null,null,null,null,null,null,null,"",""]
[null,null,null,null,null,null,null,null,"",""]
[null,null,null,null,null,null,null,null,"",""]
[null,null,null,null,null,null,null,null,"",""]
[null,null,null,null,null,null,null,null,"",""]
[null,null,null,null,null,null,null,null,"",""]
[null,null,null,null,null,null,null,null,"",""]
[null,null,null,null,null,null,null,null,"",""]
[null,null,null,null,null,null,null,null,"",""]
[null,null,null,null,null,null,null,null,"",""]
[null,null,null,null,null,null,null,null,"",""]
[null,null,null,null,null,null,null,null,"",""]
[null,null,null,null,null,null,null,null,"",""]
[null,null,null,null,null,null,null,null,"",""]
[null,null,null,null,null,null,null,null,"",""]
[null,null,null,null,null,null,null,null,"",""]
[null,null,null,null,null,null,null,null,"",""]
[null,null,null,null,null,null,null,null,"",""]
[null,null,null,null,null,null,null,null,"",""]
[null,null,null,null,null,null,null,null,"",""]
[null,null,null,null,null,null,null,null,"",""]
[null,null,null,null,null,null,null,null,"",""]
[null,null,null,null,null,null,null,null,"",""]
[null,null,null,null,null,null,null,null,"",""]
[null,null,null,null,null,null,null,null,"",""]
[null,null,null,null,null,null,null,null,"",""]
[null,null,null,null,null,null,null,null,"",{"$f":"IF(G1261=\"\",\"\",IF(H1261=\"NO\",\"SIN FECHA\",IF(H1261=\"\",\"SIN FECHA\",IF(TODAY()>H1261,\"FINALIZADO\",IF(G1261<=TODAY(),\"VIGENTE\",\"SIN INICIAR\")))))","v":""}]
[null,null,null,null,null,null,null,null,"",""]
[null,null,null,null,null,null,null,null,"",""]
[null,null,null,null,null,null,null,null,"",""]
[null,null,null,null,null,null,null,null,"",""]
[null,null,null,null,null,null,null,null,"",""]
[null,null,null,null,null,null,null,null,"",""]
[null,null,null,null,null,null,null,null,"",""]
[null,null,null,null,null,null,null,null,"",""]
[null,null,null,null,null,null,null,null,"",""]
[null,null,null,null,null,null,null,null,"",""]
[null,null,null,null,null,null,null,null,"",""]
[null,null,null,null,null,null,null,null,"",""]
[null,null,null,null,null,null,null,null,"",""]
[null,null,null,null,null,null,null,null,"",""]
[null,null,null,null,null,null,null,null,"",""]
[null,null,null,null,null,null,null,null,"",""]
[null,null,null,null,null,null,null,null,"",""]
[null,null,null,null,null,null,null,null,"",""]
[null,null,null,null,null,null,null,null,"",""]
[null,null,null,null,null,null,null,null,"",""]
[null,null,null,null,null,null,null,null,"",""]
[null,null,null,null,null,null,null,null,"",""]
[null,null,null,null,null,null,null,null,{"$f":"IF(G1284=\"\",\"\",(ROUND(DAYS360(G1284,H1284,1)/30,0) & \" MESES\"))","v":""},""]
[null,null,null,null,null,null,null,null,"",""]
[null,null,null,null,null,null,null,null,"",""]
[null,null,null,null,null,null,null,null,"",""]
[null,null,null,null,null,null,null,null,"",""]
[null,null,null,null,null,null,null,null,"",""]
[null,null,null,null,null,null,null,null,"",""]
[null,null,null,null,null,null,null,null,"",""]
[null,null,null,null,null,null,null,null,"",""]
[null,null,null,null,null,null,null,null,"",""]
[null,null,null,null,null,null,null,null,"",""]
[null,null,null,null,null,null,null,null,"",""]
[null,null,null,null,null,null,null,null,"",""]
[null,null,null,null,null,null,null,null,"",""]
[null,null,null,null,null,null,null,null,"",""]
[null,null,null,null,null,null,null,null,"",""]
[null,null,null,null,null,null,null,null,"",""]
[null,null,null,null,null,null,null,null,"",""]
[null,null,null,null,null,null,null,null,"",""]
[null,null,null,null,null,null,null,null,"",""]
[null,null,null,null,null,null,null,null,"",""]
[null,null,null,null,null,null,null,null,"",""]
[null,null,null,null,null,null,null,null,"",""]
[null,null,null,null,null,null,null,null,"",""]
[null,null,null,null,null,null,null,null,"",""]
[null,null,null,null,null,null,null,null,"",""]
[null,null,null,null,null,null,null,null,"",""]
[null,null,null,null,null,null,null,null,"",""]
[null,null,null,null,null,null,null,null,"",""]
[null,null,null,null,null,null,null,null,"",""]
[null,null,null,null,null,null,null,null,"",""]
[null,null,null,null,null,null,null,null,"",""]
[null,null,null,null,null,null,null,null,"",""]
[null,null,null,null,null,null,null,null,"",""]
[null,null,null,null,null,null,null,null,"",""]
[null,null,null,null,null,null,null,null,"",""]
[null,null,null,null,null,null,null,null,"",""]
[null,null,null,null,null,null,null,null,"",""]
[null,null,null,null,null,null,null,null,"",""]
[null,null,null,null,null,null,null,null,"",""]
[null,null,null,null,null,null,null,null,"",""]
[null,null,null,null,null,null,null,null,"",{"$f":"IF(G1325=\"\",\"\",IF(H1325=\"NO\",\"SIN FECHA\",IF(H1325=\"\",\"SIN FECHA\",IF(TODAY()>H1325,\"FINALIZADO\",IF(G1325<=TODAY(),\"VIGENTE\",\"SIN INICIAR\")))))","v":""}]
[null,null,null,null,null,null,null,null,"",""]
[null,null,null,null,null,null,null,null,"",""]
[null,null,null,null,null,null,null,null,"",""]
[null,null,null,null,null,null,null,null,"",""]
[null,null,null,null,null,null,null,null,"",""]
[null,null,null,null,null,null,null,null,"",""]
[null,null,null,null,null,null,null,null,"",""]
[null,null,null,null,null,null,null,null,"",""]
[null,null,null,null,null,null,null,null,"",""]
[null,null,null,null,null,null,null,null,"",""]
[null,null,null,null,null,null,null,null,"",""]
[null,null,null,null,null,null,null,null,"",""]
[null,null,null,null,null,null,null,null,"",""]
[null,null,null,null,null,null,null,null,"",""]
[null,null,null,null,null,null,null,null,"",""]
[null,null,null,null,null,null,null,null,"",""]
[null,null,null,null,null,null,null,null,"",""]
[null,null,null,null,null,null,null,null,"",""]
[null,null,null,null,null,null,null,null,"",""]
[null,null,null,null,null,null,null,null,"",""]
[null,null,null,null,null,null,null,null,"",""]
[null,null,null,null,null,null,null,null,"",""]
[null,null,null,null,null,null,null,null,{"$f":"IF(G1348=\"\",\"\",(ROUND(DAYS360(G1348,H1348,1)/30,0) & \" MESES\"))","v":""},""]
[null,null,null,null,null,null,null,null,"",""]
[null,null,null,null,null,null,null,null,"",""]
[null,null,null,null,null,null,null,null,"",""]
[null,null,null,null,null,null,null,null,"",""]
[null,null,null,null,null,null,null,null,"",""]
[null,null,null,null,null,null,null,null,"",""]
[null,null,null,null,null,null,null,null,"",""]
[null,null,null,null,null,null,null,null,"",""]
[null,null,null,null,null,null,null,null,"",""]
[null,null,null,null,null,null,null,null,"",""]
[null,null,null,null,null,null,null,null,"",""]
[null,null,null,null,null,null,null,null,"",""]
[null,null,null,null,null,null,null,null,"",""]
[null,null,null,null,null,null,null,null,"",""]
[null,null,null,null,null,null,null,null,"",""]
[null,null,null,null,null,null,null,null,"",""]
[null,null,null,null,null,null,null,null,"",""]
[null,null,null,null,null,null,null,null,"",""]
[null,null,null,null,null,null,null,null,"",""]
[null,null,null,null,null,null,null,null,"",""]
[null,null,null,null,null,null,null,null,"",""]
[null,null,null,null,null,null,null,null,"",""]
[null,null,null,null,null,null,null,null,"",""]
[null,null,null,null,null,null,null,null,"",""]
[null,null,null,null,null,null,null,null,"",""]
[null,null,null,null,null,null,null,null,"",""]
[null,null,null,null,null,null,null,null,"",""]
[null,null,null,null,null,null,null,null,"",""]
[null,null,null,null,null,null,null,null,"",""]
[null,null,null,null,null,null,null,null,"",""]
[null,null,null,null,null,null,null,null,"",""]
[null,null,null,null,null,null,null,null,"",""]
[null,null,null,null,null,null,null,null,"",""]
[null,null,null,null,null,null,null,null,"",""]
[null,null,null,null,null,null,null,null,"",""]
[null,null,null,null,null,null,null,null,"",""]
[null,null,null,null,null,null,null,null,"",""]
[null,null,null,null,null,null,null,null,"",""]
[null,null,null,null,null,null,null,null,"",""]
[null,null,null,null,null,null,null,null,"",""]
[null,null,null,null,null,null,null,null,"",{"$f":"IF(G1389=\"\",\"\",IF(H1389=\"NO\",\"SIN FECHA\",IF(H1389=\"\",\"SIN FECHA\",IF(TODAY()>H1389,\"FINALIZADO\",IF(G1389<=TODAY(),\"VIGENTE\",\"SIN INICIAR\")))))","v":""}]
[null,null,null,null,null,null,null,null,"",""]
[null,null,null,null,null,null,null,null,"",""]
[null,null,null,null,null,null,null,null,"",""]
[null,null,null,null,null,null,null,null,"",""]
[null,null,null,null,null,null,null,null,"",""]
[null,null,null,null,null,null,null,null,"",""]
[null,null,null,null,null,null,null,null,"",""]
[null,null,null,null,null,null,null,null,"",""]
[null,null,null,null,null,null,null,null,"",""]
[null,null,null,null,null,null,null,null,"",""]
[null,null,null,null,null,null,null,null,"",""]
[null,null,null,null,null,null,null,null,"",""]
[null,null,null,null,null,null,null,null,"",""]
[null,null,null,null,null,null,null,null,"",""]
[null,null,null,null,null,null,null,null,"",""]
[null,null,null,null,null,null,null,null,"",""]
[null,null,null,null,null,null,null,null,"",""]
[null,null,null,null,null,null,null,null,"",""]
[null,null,null,null,null,null,null,null,"",""]
[null,null,null,null,null,null,null,null,"",""]
[null,null,null,null,null,null,null,null,"",""]
[null,null,null,null,null,null,null,null,"",""]
[null,null,null,null,null,null,null,null,{"$f":"IF(G1412=\"\",\"\",(ROUND(DAYS360(G1412,H1412,1)/30,0) & \" MESES\"))","v":""},""]
[null,null,null,null,null,null,null,null,"",""]
[null,null,null,null,null,null,null,null,"",""]
[null,null,null,null,null,null,null,null,"",""]
[null,null,null,null,null,null,null,null,"",""]
[null,null,null,null,null,null,null,null,"",""]
[null,null,null,null,null,null,null,null,"",""]
[null,null,null,null,null,null,null,null,"",""]
[null,null,null,null,null,null,null,null,"",""]
[null,null,null,null,null,null,null,null,"",""]
[null,null,null,null,null,null,null,null,"",""]
[null,null,null,null,null,null,null,null,"",""]
[null,null,null,null,null,null,null,null,"",""]
[null,null,null,null,null,null,null,null,"",""]
[null,null,null,null,null,null,null,null,"",""]
[null,null,null,null,null,null,null,null,"",""]
[null,null,null,null,null,null,null,null,"",""]
[null,null,null,null,null,null,null,null,"",""]
[null,null,null,null,null,null,null,null,"",""]
[null,null,null,null,null,null,null,null,"",""]
[null,null,null,null,null,null,null,null,"",""]
[null,null,null,null,null,null,null,null,"",""]
[null,null,null,null,null,null,null,null,"",""]
[null,null,null,null,null,null,null,null,"",""]
[null,null,null,null,null,null,null,null,"",""]
[null,null,null,null,null,null,null,null,"",""]
[null,null,null,null,null,null,null,null,"",""]
[null,null,null,null,null,null,null,null,"",""]
[null,null,null,null,null,null,null,null,"",""]
[null,null,null,null,null,null,null,null,"",""]
[null,null,null,null,null,null,null,null,"",""]
[null,null,null,null,null,null,null,null,"",""]
[null,null,null,null,null,null,null,null,"",""]
[null,null,null,null,null,null,null,null,"",""]
[null,null,null,null,null,null,null,null,"",""]
[null,null,null,null,null,null,null,null,"",""]
[null,null,null,null,null,null,null,null,"",""]
[null,null,null,null,null,null,null,null,"",""]
[null,null,null,null,null,null,null,null,"",""]
[null,null,null,null,null,null,null,null,"",""]
[null,null,null,null,null,null,null,null,"",""]
[null,null,null,null,null,null,null,null,"",{"$f":"IF(G1453=\"\",\"\",IF(H1453=\"NO\",\"SIN FECHA\",IF(H1453=\"\",\"SIN FECHA\",IF(TODAY()>H1453,\"FINALIZADO\",IF(G1453<=TODAY(),\"VIGENTE\",\"SIN INICIAR\")))))","v":""}]
[null,null,null,null,null,null,null,null,"",""]
[null,null,null,null,null,null,null,null,"",""]
[null,null,null,null,null,null,null,null,"",""]
[null,null,null,null,null,null,null,null,"",""]
[null,null,null,null,null,null,null,null,"",""]
[null,null,null,null,null,null,null,null,"",""]
[null,null,null,null,null,null,null,null,"",""]
[null,null,null,null,null,null,null,null,"",""]
[null,null,null,null,null,null,null,null,"",""]
[null,null,null,null,null,null,null,null,"",""]
[null,null,null,null,null,null,null,null,"",""]
[null,null,null,null,null,null,null,null,"",""]
[null,null,null,null,null,null,null,null,"",""]
[null,null,null,null,null,null,null,null,"",""]
[null,null,null,null,null,null,null,null,"",""]
[null,null,null,null,null,null,null,null,"",""]
[null,null,null,null,null,null,null,null,"",""]
[null,null,null,null,null,null,null,null,"",""]
[null,null,null,null,null,null,null,null,"",""]
[null,null,null,null,null,null,null,null,"",""]
[null,null,null,null,null,null,null,null,"",""]
[null,null,null,null,null,null,null,null,"",""]
[null,null,null,null,null,null,null,null,{"$f":"IF(G1476=\"\",\"\",(ROUND(DAYS360(G1476,H1476,1)/30,0) & \" MESES\"))","v":""},""]
[null,null,null,null,null,null,null,null,"",""]
[null,null,null,null,null,null,null,null,"",""]
[null,null,null,null,null,null,null,null,"",""]
[null,null,null,null,null,null,null,null,"",""]
[null,null,null,null,null,null,null,null,"",""]
[null,null,null,null,null,null,null,null,"",""]
[null,null,null,null,null,null,null,null,"",""]
[null,null,null,null,null,null,null,null,"",""]
[null,null,null,null,null,null,null,null,"",""]
[null,null,null,null,null,null,null,null,"",""]
[null,null,null,null,null,null,null,null,"",""]
[null,null,null,null,null,null,null,null,"",""]
[null,null,null,null,null,null,null,null,"",""]
[null,null,null,null,null,null,null,null,"",""]
[null,null,null,null,null,null,null,null,"",""]
[null,null,null,null,null,null,null,null,"",""]
[null,null,null,null,null,null,null,null,"",""]
[null,null,null,null,null,null,null,null,"",""]
[null,null,null,null,null,null,null,null,"",""]
[null,null,null,null,null,null,null,null,"",""]
[null,null,null,null,null,null,null,null,"",""]
[null,null,null,null,null,null,null,null,"",""]
[null,null,null,null,null,null,null,null,"",""]
[null,null,null,null,null,null,null,null,"",""]
[null,null,null,null,null,null,null,null,"",""]
[null,null,null,null,null,null,null,null,"",""]
[null,null,null,null,null,null,null,null,"",""]
[null,null,null,null,null,null,null,null,"",""]
[null,null,null,null,null,null,null,null,"",""]
[null,null,null,null,null,null,null,null,"",""]
[null,null,null,null,null,null,null,null,"",""]
[null,null,null,null,null,null,null,null,"",""]
[null,null,null,null,null,null,null,null,"",""]
[null,null,null,null,null,null,null,null,"",""]
[null,null,null,null,null,null,null,null,"",""]
[null,null,null,null,null,null,null,null,"",""]
[null,null,null,null,null,null,null,null,"",""]
[null,null,null,null,null,null,null,null,"",""]
[null,null,null,null,null,null,null,null,"",""]
[null,null,null,null,null,null,null,null,"",""]
[null,null,null,null,null,null,null,null,"",{"$f":"IF(G1517=\"\",\"\",IF(H1517=\"NO\",\"SIN FECHA\",IF(H1517=\"\",\"SIN FECHA\",IF(TODAY()>H1517,\"FINALIZADO\",IF(G1517<=TODAY(),\"VIGENTE\",\"SIN INICIAR\")))))","v":""}]
[null,null,null,null,null,null,null,null,"",""]
[null,null,null,null,null,null,null,null,"",""]
[null,null,null,null,null,null,null,null,"",""]
[null,null,null,null,null,null,null,null,"",""]
[null,null,null,null,null,null,null,null,"",""]
[null,null,null,null,null,null,null,null,"",""]
[null,null,null,null,null,null,null,null,"",""]
[null,null,null,null,null,null,null,null,"",""]
[null,null,null,null,null,null,null,null,"",""]
[null,null,null,null,null,null,null,null,"",""]
[null,null,null,null,null,null,null,null,"",""]
[null,null,null,null,null,null,null,null,"",""]
[null,null,null,null,null,null,null,null,"",""]
[null,null,null,null,null,null,null,null,"",""]
[null,null,null,null,null,null,null,null,"",""]
[null,null,null,null,null,null,null,null,"",""]
[null,null,null,null,null,null,null,null,"",""]
[null,null,null,null,null,null,null,null,"",""]
[null,null,null,null,null,null,null,null,"",""]
[null,null,null,null,null,null,null,null,"",""]
[null,null,null,null,null,null,null,null,"",""]
[null,null,null,null,null,null,null,null,"",""]
[null,null,null,null,null,null,null,null,{"$f":"IF(G1540=\"\",\"\",(ROUND(DAYS360(G1540,H1540,1)/30,0) & \" MESES\"))","v":""},""]
[null,null,null,null,null,null,null,null,"",""]
[null,null,null,null,null,null,null,null,"",""]
[null,null,null,null,null,null,null,null,"",""]
[null,null,null,null,null,null,null,null,"",""]
[null,null,null,null,null,null,null,null,"",""]
[null,null,null,null,null,null,null,null,"",""]
[null,null,null,null,null,null,null,null,"",""]
[null,null,null,null,null,null,null,null,"",""]
[null,null,null,null,null,null,null,null,"",""]
[null,null,null,null,null,null,null,null,"",""]
[null,null,null,null,null,null,null,null,"",""]
[null,null,null,null,null,null,null,null,"",""]
[null,null,null,null,null,null,null,null,"",""]
[null,null,null,null,null,null,null,null,"",""]
[null,null,null,null,null,null,null,null,"",""]
[null,null,null,null,null,null,null,null,"",""]
[null,null,null,null,null,null,null,null,"",""]
[null,null,null,null,null,null,null,null,"",""]
[null,null,null,null,null,null,null,null,"",""]
[null,null,null,null,null,null,null,null,"",""]
[null,null,null,null,null,null,null,null,"",""]
[null,null,null,null,null,null,null,null,"",""]
[null,null,null,null,null,null,null,null,"",""]
[null,null,null,null,null,null,null,null,"",""]
[null,null,null,null,null,null,null,null,"",""]
[null,null,null,null,null,null,null,null,"",""]
[null,null,null,null,null,null,null,null,"",""]
[null,null,null,null,null,null,null,null,"",""]
[null,null,null,null,null,null,null,null,"",""]
[null,null,null,null,null,null,null,null,"",""]
[null,null,null,null,null,null,null,null,"",""]
[null,null,null,null,null,null,null,null,"",""]
[null,null,null,null,null,null,null,null,"",""]
[null,null,null,null,null,null,null,null,"",""]
[null,null,null,null,null,null,null,null,"",""]
[null,null,null,null,null,null,null,null,"",""]
[null,null,null,null,null,null,null,null,"",""]
[null,null,null,null,null,null,null,null,"",""]
[null,null,null,null,null,null,null,null,"",""]
[null,null,null,null,null,null,null,null,"",""]
[null,null,null,null,null,null,null,null,"",{"$f":"IF(G1581=\"\",\"\",IF(H1581=\"NO\",\"SIN FECHA\",IF(H1581=\"\",\"SIN FECHA\",IF(TODAY()>H1581,\"FINALIZADO\",IF(G1581<=TODAY(),\"VIGENTE\",\"SIN INICIAR\")))))","v":""}]
[null,null,null,null,null,null,null,null,"",""]
[null,null,null,null,null,null,null,null,"",""]
[null,null,null,null,null,null,null,null,"",""]
[null,null,null,null,null,null,null,null,"",""]
[null,null,null,null,null,null,null,null,"",""]
[null,null,null,null,null,null,null,null,"",""]
[null,null,null,null,null,null,null,null,"",""]
[null,null,null,null,null,null,null,null,"",""]
[null,null,null,null,null,null,null,null,"",""]
[null,null,null,null,null,null,null,null,"",""]
[null,null,null,null,null,null,null,null,"",""]
[null,null,null,null,null,null,null,null,"",""]
[null,null,null,null,null,null,null,null,"",""]
[null,null,null,null,null,null,null,null,"",""]
[null,null,null,null,null,null,null,null,"",""]
[null,null,null,null,null,null,null,null,"",""]
[null,null,null,null,null,null,null,null,"",""]
[null,null,null,null,null,null,null,null,"",""]
[null,null,null,null,null,null,null,null,"",""]
[null,null,null,null,null,null,null,null,"",""]
[null,null,null,null,null,null,null,null,"",""]
[null,null,null,null,null,null,null,null,"",""]
[null,null,null,null,null,null,null,null,{"$f":"IF(G1604=\"\",\"\",(ROUND(DAYS360(G1604,H1604,1)/30,0) & \" MESES\"))","v":""},""]
[null,null,null,null,null,null,null,null,"",""]
[null,null,null,null,null,null,null,null,"",""]
[null,null,null,null,null,null,null,null,"",""]
[null,null,null,null,null,null,null,null,"",""]
[null,null,null,null,null,null,null,null,"",""]
[null,null,null,null,null,null,null,null,"",""]
[null,null,null,null,null,null,null,null,"",""]
[null,null,null,null,null,null,null,null,"",""]
[null,null,null,null,null,null,null,null,"",""]
[null,null,null,null,null,null,null,null,"",""]
[null,null,null,null,null,null,null,null,"",""]
[null,null,null,null,null,null,null,null,"",""]
[null,null,null,null,null,null,null,null,"",""]
[null,null,null,null,null,null,null,null,"",""]
[null,null,null,null,null,null,null,null,"",""]
[null,null,null,null,null,null,null,null,"",""]
[null,null,null,null,null,null,null,null,"",""]
[null,null,null,null,null,null,null,null,"",""]
[null,null,null,null,null,null,null,null,"",""]
[null,null,null,null,null,null,null,null,"",""]
[null,null,null,null,null,null,null,null,"",""]
[null,null,null,null,null,null,null,null,"",""]
[null,null,null,null,null,null,null,null,"",""]
[null,null,null,null,null,null,null,null,"",""]
[null,null,null,null,null,null,null,null,"",""]
[null,null,null,null,null,null,null,null,"",""]
[null,null,null,null,null,null,null,null,"",""]
[null,null,null,null,null,null,null,null,"",""]
[null,null,null,null,null,null,null,null,"",""]
[null,null,null,null,null,null,null,null,"",""]
[null,null,null,null,null,null,null,null,"",""]
[null,null,null,null,null,null,null,null,"",""]
[null,null,null,null,null,null,null,null,"",""]
[null,null,null,null,null,null,null,null,"",""]
[null,null,null,null,null,null,null,null,"",""]
[null,null,null,null,null,null,null,null,"",""]
[null,null,null,null,null,null,null,null,"",""]
[null,null,null,null,null,null,null,null,"",""]
[null,null,null,null,null,null,null,null,"",""]
[null,null,null,null,null,null,null,null,"",""]
[null,null,null,null,null,null,null,null,"",{"$f":"IF(G1645=\"\",\"\",IF(H1645=\"NO\",\"SIN FECHA\",IF(H1645=\"\",\"SIN FECHA\",IF(TODAY()>H1645,\"FINALIZADO\",IF(G1645<=TODAY(),\"VIGENTE\",\"SIN INICIAR\")))))","v":""}]
[null,null,null,null,null,null,null,null,"",""]
[null,null,null,null,null,null,null,null,"",""]
[null,null,null,null,null,null,null,null,"",""]
[null,null,null,null,null,null,null,null,"",""]
[null,null,null,null,null,null,null,null,"",""]
[null,null,null,null,null,null,null,null,"",""]
[null,null,null,null,null,null,null,null,"",""]
[null,null,null,null,null,null,null,null,"",""]
[null,null,null,null,null,null,null,null,"",""]
[null,null,null,null,null,null,null,null,"",""]
[null,null,null,null,null,null,null,null,"",""]
[null,null,null,null,null,null,null,null,"",""]
[null,null,null,null,null,null,null,null,"",""]
[null,null,null,null,null,null,null,null,"",""]
[null,null,null,null,null,null,null,null,"",""]
[null,null,null,null,null,null,null,null,"",""]
[null,null,null,null,null,null,null,null,"",""]
[null,null,null,null,null,null,null,null,"",""]
[null,null,null,null,null,null,null,null,"",""]
[null,null,null,null,null,null,null,null,"",""]
[null,null,null,null,null,null,null,null,"",""]
[null,null,null,null,null,null,null,null,"",""]
[null,null,null,null,null,null,null,null,{"$f":"IF(G1668=\"\",\"\",(ROUND(DAYS360(G1668,H1668,1)/30,0) & \" MESES\"))","v":""},""]
[null,null,null,null,null,null,null,null,"",""]
[null,null,null,null,null,null,null,null,"",""]
[null,null,null,null,null,null,null,null,"",""]
[null,null,null,null,null,null,null,null,"",""]
[null,null,null,null,null,null,null,null,"",""]
[null,null,null,null,null,null,null,null,"",""]
[null,null,null,null,null,null,null,null,"",""]
[null,null,null,null,null,null,null,null,"",""]
[null,null,null,null,null,null,null,null,"",""]
[null,null,null,null,null,null,null,null,"",""]
[null,null,null,null,null,null,null,null,"",""]
[null,null,null,null,null,null,null,null,"",""]
[null,null,null,null,null,null,null,null,"",""]
[null,null,null,null,null,null,null,null,"",""]
[null,null,null,null,null,null,null,null,"",""]
[null,null,null,null,null,null,null,null,"",""]
[null,null,null,null,null,null,null,null,"",""]
[null,null,null,null,null,null,null,null,"",""]
[null,null,null,null,null,null,null,null,"",""]
[null,null,null,null,null,null,null,null,"",""]
[null,null,null,null,null,null,null,null,"",""]
[null,null,null,null,null,null,null,null,"",""]
[null,null,null,null,null,null,null,null,"",""]
[null,null,null,null,null,null,null,null,"",""]
[null,null,null,null,null,null,null,null,"",""]
[null,null,null,null,null,null,null,null,"",""]
[null,null,null,null,null,null,null,null,"",""]
[null,null,null,null,null,null,null,null,"",""]
[null,null,null,null,null,null,null,null,"",""]
[null,null,null,null,null,null,null,null,"",""]
[null,null,null,null,null,null,null,null,"",""]
[null,null,null,null,null,null,null,null,"",""]
[null,null,null,null,null,null,null,null,"",""]
[null,null,null,null,null,null,null,null,"",""]
[null,null,null,null,null,null,null,null,"",""]
[null,null,null,null,null,null,null,null,"",""]
[null,null,null,null,null,null,null,null,"",""]
[null,null,null,null,null,null,null,null,"",""]
[null,null,null,null,null,null,null,null,"",""]
[null,null,null,null,null,null,null,null,"",""]
[null,null,null,null,null,null,null,null,"",{"$f":"IF(G1709=\"\",\"\",IF(H1709=\"NO\",\"SIN FECHA\",IF(H1709=\"\",\"SIN FECHA\",IF(TODAY()>H1709,\"FINALIZADO\",IF(G1709<=TODAY(),\"VIGENTE\",\"SIN INICIAR\")))))","v":""}]
[null,null,null,null,null,null,null,null,"",""]
[null,null,null,null,null,null,null,null,"",""]
[null,null,null,null,null,null,null,null,"",""]
[null,null,null,null,null,null,null,null,"",""]
[null,null,null,null,null,null,null,null,"",""]
[null,null,null,null,null,null,null,null,"",""]
[null,null,null,null,null,null,null,null,"",""]
[null,null,null,null,null,null,null,null,"",""]
[null,null,null,null,null,null,null,null,"",""]
[null,null,null,null,null,null,null,null,"",""]
[null,null,null,null,null,null,null,null,"",""]
[null,null,null,null,null,null,null,null,"",""]
[null,null,null,null,null,null,null,null,"",""]
[null,null,null,null,null,null,null,null,"",""]
[null,null,null,null,null,null,null,null,"",""]
[null,null,null,null,null,null,null,null,"",""]
[null,null,null,null,null,null,null,null,"",""]
[null,null,null,null,null,null,null,null,"",""]
[null,null,null,null,null,null,null,null,"",""]
[null,null,null,null,null,null,null,null,"",""]
[null,null,null,null,null,null,null,null,"",""]
[null,null,null,null,null,null,null,null,"",""]
[null,null,null,null,null,null,null,null,{"$f":"IF(G1732=\"\",\"\",(ROUND(DAYS360(G1732,H1732,1)/30,0) & \" MESES\"))","v":""},""]
[null,null,null,null,null,null,null,null,"",""]
[null,null,null,null,null,null,null,null,"",""]
[null,null,null,null,null,null,null,null,"",""]
[null,null,null,null,null,null,null,null,"",""]
[null,null,null,null,null,null,null,null,"",""]
[null,null,null,null,null,null,null,null,"",""]
[null,null,null,null,null,null,null,null,"",""]
[null,null,null,null,null,null,null,null,"",""]
[null,null,null,null,null,null,null,null,"",""]
[null,null,null,null,null,null,null,null,"",""]
[null,null,null,null,null,null,null,null,"",""]
[null,null,null,null,null,null,null,null,"",""]
[null,null,null,null,null,null,null,null,"",""]
[null,null,null,null,null,null,null,null,"",""]
[null,null,null,null,null,null,null,null,"",""]
[null,null,null,null,null,null,null,null,"",""]
[null,null,null,null,null,null,null,null,"",""]
[null,null,null,null,null,null,null,null,"",""]
[null,null,null,null,null,null,null,null,"",""]
[null,null,null,null,null,null,null,null,"",""]
[null,null,null,null,null,null,null,null,"",""]
[null,null,null,null,null,null,null,null,"",""]
[null,null,null,null,null,null,null,null,"",""]
[null,null,null,null,null,null,null,null,"",""]
[null,null,null,null,null,null,null,null,"",""]
[null,null,null,null,null,null,null,null,"",""]
[null,null,null,null,null,null,null,null,"",""]
[null,null,null,null,null,null,null,null,"",""]
[null,null,null,null,null,null,null,null,"",""]
[null,null,null,null,null,null,null,null,"",""]
[null,null,null,null,null,null,null,null,"",""]
[null,null,null,null,null,null,null,null,"",""]
[null,null,null,null,null,null,null,null,"",""]
[null,null,null,null,null,null,null,null,"",""]
[null,null,null,null,null,null,null,null,"",""]
[null,null,null,null,null,null,null,null,"",""]
[null,null,null,null,null,null,null,null,"",""]
[null,null,null,null,null,null,null,null,"",""]
[null,null,null,null,null,null,null,null,"",""]
[null,null,null,null,null,null,null,null,"",""]
[null,null,null,null,null,null,null,null,"",{"$f":"IF(G1773=\"\",\"\",IF(H1773=\"NO\",\"SIN FECHA\",IF(H1773=\"\",\"SIN FECHA\",IF(TODAY()>H1773,\"FINALIZADO\",IF(G1773<=TODAY(),\"VIGENTE\",\"SIN INICIAR\")))))","v":""}]
[null,null,null,null,null,null,null,null,"",""]
[null,null,null,null,null,null,null,null,"",""]
[null,null,null,null,null,null,null,null,"",""]
[null,null,null,null,null,null,null,null,"",""]
[null,null,null,null,null,null,null,null,"",""]
[null,null,null,null,null,null,null,null,"",""]
[null,null,null,null,null,null,null,null,"",""]
[null,null,null,null,null,null,null,null,"",""]
[null,null,null,null,null,null,null,null,"",""]
[null,null,null,null,null,null,null,null,"",""]
[null,null,null,null,null,null,null,null,"",""]
[null,null,null,null,null,null,null,null,"",""]
[null,null,null,null,null,null,null,null,"",""]
[null,null,null,null,null,null,null,null,"",""]
[null,null,null,null,null,null,null,null,"",""]
[null,null,null,null,null,null,null,null,"",""]
[null,null,null,null,null,null,null,null,"",""]
[null,null,null,null,null,null,null,null,"",""]
[null,null,null,null,null,null,null,null,"",""]
[null,null,null,null,null,null,null,null,"",""]
[null,null,null,null,null,null,null,null,"",""]
[null,null,null,null,null,null,null,null,"",""]
[null,null,null,null,null,null,null,null,{"$f":"IF(G1796=\"\",\"\",(ROUND(DAYS360(G1796,H1796,1)/30,0) & \" MESES\"))","v":""},""]
[null,null,null,null,null,null,null,null,"",""]
[null,null,null,null,null,null,null,null,"",""]
[null,null,null,null,null,null,null,null,"",""]
[null,null,null,null,null,null,null,null,"",""]
[null,null,null,null,null,null,null,null,"",""]
[null,null,null,null,null,null,null,null,"",""]
[null,null,null,null,null,null,null,null,"",""]
[null,null,null,null,null,null,null,null,"",""]
[null,null,null,null,null,null,null,null,"",""]
[null,null,null,null,null,null,null,null,"",""]
[null,null,null,null,null,null,null,null,"",""]
[null,null,null,null,null,null,null,null,"",""]
[null,null,null,null,null,null,null,null,"",""]
[null,null,null,null,null,null,null,null,"",""]
[null,null,null,null,null,null,null,null,"",""]
[null,null,null,null,null,null,null,null,"",""]
[null,null,null,null,null,null,null,null,"",""]
[null,null,null,null,null,null,null,null,"",""]
[null,null,null,null,null,null,null,null,"",""]
[null,null,null,null,null,null,null,null,"",""]
[null,null,null,null,null,null,null,null,"",""]
[null,null,null,null,null,null,null,null,"",""]
[null,null,null,null,null,null,null,null,"",""]
[null,null,null,null,null,null,null,null,"",""]
[null,null,null,null,null,null,null,null,"",""]
[null,null,null,null,null,null,null,null,"",""]
[null,null,null,null,null,null,null,null,"",""]
[null,null,null,null,null,null,null,null,"",""]
[null,null,null,null,null,null,null,null,"",""]
[null,null,null,null,null,null,null,null,"",""]
[null,null,null,null,null,null,null,null,"",""]
[null,null,null,null,null,null,null,null,"",""]
[null,null,null,null,null,null,null,null,"",""]
[null,null,null,null,null,null,null,null,"",""]
[null,null,null,null,null,null,null,null,"",""]
[null,null,null,null,null,null,null,null,"",""]
[null,null,null,null,null,null,null,null,"",""]
[null,null,null,null,null,null,null,null,"",""]
[null,null,null,null,null,null,null,null,"",""]
[null,null,null,null,null,null,null,null,"",""]
[null,null,null,null,null,null,null,null,"",{"$f":"IF(G1837=\"\",\"\",IF(H1837=\"NO\",\"SIN FECHA\",IF(H1837=\"\",\"SIN FECHA\",IF(TODAY()>H1837,\"FINALIZADO\",IF(G1837<=TODAY(),\"VIGENTE\",\"SIN INICIAR\")))))","v":""}]
[null,null,null,null,null,null,null,null,"",""]
[null,null,null,null,null,null,null,null,"",""]
[null,null,null,null,null,null,null,null,"",""]
[null,null,null,null,null,null,null,null,"",""]
[null,null,null,null,null,null,null,null,"",""]
[null,null,null,null,null,null,null,null,"",""]
[null,null,null,null,null,null,null,null,"",""]
[null,null,null,null,null,null,null,null,"",""]
[null,null,null,null,null,null,null,null,"",""]
[null,null,null,null,null,null,null,null,"",""]
[null,null,null,null,null,null,null,null,"",""]
[null,null,null,null,null,null,null,null,"",""]
[null,null,null,null,null,null,null,null,"",""]
[null,null,null,null,null,null,null,null,"",""]
[null,null,null,null,null,null,null,null,"",""]
[null,null,null,null,null,null,null,null,"",""]
[null,null,null,null,null,null,null,null,"",""]
[null,null,null,null,null,null,null,null,"",""]
[null,null,null,null,null,null,null,null,"",""]
[null,null,null,null,null,null,null,null,"",""]
[null,null,null,null,null,null,null,null,"",""]
[null,null,null,null,null,null,null,null,"",""]
[null,null,null,null,null,null,null,null,{"$f":"IF(G1860=\"\",\"\",(ROUND(DAYS360(G1860,H1860,1)/30,0) & \" MESES\"))","v":""},""]
[null,null,null,null,null,null,null,null,"",""]
[null,null,null,null,null,null,null,null,"",""]
[null,null,null,null,null,null,null,null,"",""]
[null,null,null,null,null,null,null,null,"",""]
[null,null,null,null,null,null,null,null,"",""]
[null,null,null,null,null,null,null,null,"",""]
[null,null,null,null,null,null,null,null,"",""]
[null,null,null,null,null,null,null,null,"",""]
[null,null,null,null,null,null,null,null,"",""]
[null,null,null,null,null,null,null,null,"",""]
[null,null,null,null,null,null,null,null,"",""]
[null,null,null,null,null,null,null,null,"",""]
[null,null,null,null,null,null,null,null,"",""]
[null,null,null,null,null,null,null,null,"",""]
[null,null,null,null,null,null,null,null,"",""]
[null,null,null,null,null,null,null,null,"",""]
[null,null,null,null,null,null,null,null,"",""]
[null,null,null,null,null,null,null,null,"",""]
[null,null,null,null,null,null,null,null,"",""]
[null,null,null,null,null,null,null,null,"",""]
[null,null,null,null,null,null,null,null,"",""]
[null,null,null,null,null,null,null,null,"",""]
[null,null,null,null,null,null,null,null,"",""]
[null,null,null,null,null,null,null,null,"",""]
[null,null,null,null,null,null,null,null,"",""]
[null,null,null,null,null,null,null,null,"",""]
[null,null,null,null,null,null,null,null,"",""]
[null,null,null,null,null,null,null,null,"",""]
[null,null,null,null,null,null,null,null,"",""]
[null,null,null,null,null,null,null,null,"",""]
[null,null,null,null,null,null,null,null,"",""]
[null,null,null,null,null,null,null,null,"",""]
[null,null,null,null,null,null,null,null,"",""]
[null,null,null,null,null,null,null,null,"",""]
[null,null,null,null,null,null,null,null,"",""]
[null,null,null,null,null,null,null,null,"",""]
[null,null,null,null,null,null,null,null,"",""]
[null,null,null,null,null,null,null,null,"",""]
[null,null,null,null,null,null,null,null,"",""]
[null,null,null,null,null,null,null,null,"",""]
[null,null,null,null,null,null,null,null,"",{"$f":"IF(G1901=\"\",\"\",IF(H1901=\"NO\",\"SIN FECHA\",IF(H1901=\"\",\"SIN FECHA\",IF(TODAY()>H1901,\"FINALIZADO\",IF(G1901<=TODAY(),\"VIGENTE\",\"SIN INICIAR\")))))","v":""}]
[null,null,null,null,null,null,null,null,"",""]
[null,null,null,null,null,null,null,null,"",""]
[null,null,null,null,null,null,null,null,"",""]
[null,null,null,null,null,null,null,null,"",""]
[null,null,null,null,null,null,null,null,"",""]
[null,null,null,null,null,null,null,null,"",""]
[null,null,null,null,null,null,null,null,"",""]
[null,null,null,null,null,null,null,null,"",""]
[null,null,null,null,null,null,null,null,"",""]
[null,null,null,null,null,null,null,null,"",""]
[null,null,null,null,null,null,null,null,"",""]
[null,null,null,null,null,null,null,null,"",""]
[null,null,null,null,null,null,null,null,"",""]
[null,null,null,null,null,null,null,null,"",""]
[null,null,null,null,null,null,null,null,"",""]
[null,null,null,null,null,null,null,null,"",""]
[null,null,null,null,null,null,null,null,"",""]
[null,null,null,null,null,null,null,null,"",""]
[null,null,null,null,null,null,null,null,"",""]
[null,null,null,null,null,null,null,null,"",""]
[null,null,null,null,null,null,null,null,"",""]
[null,null,null,null,null,null,null,null,"",""]
[null,null,null,null,null,null,null,null,{"$f":"IF(G1924=\"\",\"\",(ROUND(DAYS360(G1924,H1924,1)/30,0) & \" MESES\"))","v":""},""]
[null,null,null,null,null,null,null,null,"",""]
[null,null,null,null,null,null,null,null,"",""]
[null,null,null,null,null,null,null,null,"",""]
[null,null,null,null,null,null,null,null,"",""]
[null,null,null,null,null,null,null,null,"",""]
[null,null,null,null,null,null,null,null,"",""]
[null,null,null,null,null,null,null,null,"",""]
[null,null,null,null,null,null,null,null,"",""]
[null,null,null,null,null,null,null,null,"",""]
[null,null,null,null,null,null,null,null,"",""]
[null,null,null,null,null,null,null,null,"",""]
[null,null,null,null,null,null,null,null,"",""]
[null,null,null,null,null,null,null,null,"",""]
[null,null,null,null,null,null,null,null,"",""]
[null,null,null,null,null,null,null,null,"",""]
[null,null,null,null,null,null,null,null,"",""]
[null,null,null,null,null,null,null,null,"",""]
[null,null,null,null,null,null,null,null,"",""]
[null,null,null,null,null,null,null,null,"",""]
[null,null,null,null,null,null,null,null,"",""]
[null,null,null,null,null,null,null,null,"",""]
[null,null,null,null,null,null,null,null,"",""]
[null,null,null,null,null,null,null,null,"",""]
[null,null,null,null,null,null,null,null,"",""]
[null,null,null,null,null,null,null,null,"",""]
[null,null,null,null,null,null,null,null,"",""]
[null,null,null,null,null,null,null,null,"",""]
[null,null,null,null,null,null,null,null,"",""]
[null,null,null,null,null,null,null,null,"",""]
[null,null,null,null,null,null,null,null,"",""]
[null,null,null,null,null,null,null,null,"",""]
[null,null,null,null,null,null,null,null,"",""]
[null,null,null,null,null,null,null,null,"",""]
[null,null,null,null,null,null,null,null,"",""]
[null,null,null,null,null,null,null,null,"",""]
[null,null,null,null,null,null,null,null,"",""]
[null,null,null,null,null,null,null,null,"",""]
[null,null,null,null,null,null,null,null,"",""]
[null,null,null,null,null,null,null,null,"",""]
[null,null,null,null,null,null,null,null,"",""]
[null,null,null,null,null,null,null,null,"",{"$f":"IF(G1965=\"\",\"\",IF(H1965=\"NO\",\"SIN FECHA\",IF(H1965=\"\",\"SIN FECHA\",IF(TODAY()>H1965,\"FINALIZADO\",IF(G1965<=TODAY(),\"VIGENTE\",\"SIN INICIAR\")))))","v":""}]
[null,null,null,null,null,null,null,null,"",""]
[null,null,null,null,null,null,null,null,"",""]
[null,null,null,null,null,null,null,null,"",""]
[null,null,null,null,null,null,null,null,"",""]
[null,null,null,null,null,null,null,null,"",""]
[null,null,null,null,null,null,null,null,"",""]
[null,null,null,null,null,null,null,null,"",""]
[null,null,null,null,null,null,null,null,"",""]
[null,null,null,null,null,null,null,null,"",""]
[null,null,null,null,null,null,null,null,"",""]
[null,null,null,null,null,null,null,null,"",""]
[null,null,null,null,null,null,null,null,"",""]
[null,null,null,null,null,null,null,null,"",""]
[null,null,null,null,null,null,null,null,"",""]
[null,null,null,null,null,null,null,null,"",""]
[null,null,null,null,null,null,null,null,"",""]
[null,null,null,null,null,null,null,null,"",""]
[null,null,null,null,null,null,null,null,"",""]
[null,null,null,null,null,null,null,null,"",""]
[null,null,null,null,null,null,null,null,"",""]
[null,null,null,null,null,null,null,null,"",""]
[null,null,null,null,null,null,null,null,"",""]
[null,null,null,null,null,null,null,null,{"$f":"IF(G1988=\"\",\"\",(ROUND(DAYS360(G1988,H1988,1)/30,0) & \" MESES\"))","v":""},""]
[null,null,null,null,null,null,null,null,"",""]
[null,null,null,null,null,null,null,null,"",""]
[null,null,null,null,null,null,null,null,"",""]
[null,null,null,null,null,null,null,null,"",""]
[null,null,null,null,null,null,null,null,"",""]
[null,null,null,null,null,null,null,null,"",""]
[null,null,null,null,null,null,null,null,"",""]
[null,null,null,null,null,null,null,null,"",""]
[null,null,null,null,null,null,null,null,"",""]
[null,null,null,null,null,null,null,null,"",""]
[null,null,null,null,null,null,null,null,"",""]
[null,null,null,null,null,null,null,null,"",""]
[null,null,null,null,null,null,null,null,"",""]
[null,null,null,null,null,null,null,null,"",""]
[null,null,null,null,null,null,null,null,"",""]
[null,null,null,null,null,null,null,null,"",""]
[null,null,null,null,null,null,null,null,"",""]
[null,null,null,null,null,null,null,null,"",""]
[null,null,null,null,null,null,null,null,"",""]
[null,null,null,null,null,null,null,null,"",""]
[null,null,null,null,null,null,null,null,"",""]
[null,null,null,null,null,null,null,null,"",""]
[null,null,null,null,null,null,null,null,"",""]
[null,null,null,null,null,null,null,null,"",""]
[null,null,null,null,null,null,null,null,"",""]
[null,null,null,null,null,null,null,null,"",""]
[null,null,null,null,null,null,null,null,"",""]
[null,null,null,null,null,null,null,null,"",""]
[null,null,null,null,null,null,null,null,"",""]
[null,null,null,null,null,null,null,null,"",""]
[null,null,null,null,null,null,null,null,"",""]
[null,null,null,null,null,null,null,null,"",""]
[null,null,null,null,null,null,null,null,"",""]
[null,null,null,null,null,null,null,null,"",""]
[null,null,null,null,null,null,null,null,"",""]
[null,null,null,null,null,null,null,null,"",""]
[null,null,null,null,null,null,null,null,"",""]
[null,null,null,null,null,null,null,null,"",""]
[null,null,null,null,null,null,null,null,"",""]
[null,null,null,null,null,null,null,null,"",""]
[null,null,null,null,null,null,null,null,"",{"$f":"IF(G2029=\"\",\"\",IF(H2029=\"NO\",\"SIN FECHA\",IF(H2029=\"\",\"SIN FECHA\",IF(TODAY()>H2029,\"FINALIZADO\",IF(G2029<=TODAY(),\"VIGENTE\",\"SIN INICIAR\")))))","v":""}]
[null,null,null,null,null,null,null,null,"",""]
[null,null,null,null,null,null,null,null,"",""]
[null,null,null,null,null,null,null,null,"",""]
[null,null,null,null,null,null,null,null,"",""]
[null,null,null,null,null,null,null,null,"",""]
[null,null,null,null,null,null,null,null,"",""]
[null,null,null,null,null,null,null,null,"",""]
[null,null,null,null,null,null,null,null,"",""]
[null,null,null,null,null,null,null,null,"",""]
[null,null,null,null,null,null,null,null,"",""]
[null,null,null,null,null,null,null,null,"",""]
[null,null,null,null,null,null,null,null,"",""]
[null,null,null,null,null,null,null,null,"",""]
[null,null,null,null,null,null,null,null,"",""]
[null,null,null,null,null,null,null,null,"",""]
[null,null,null,null,null,null,null,null,"",""]
[null,null,null,null,null,null,null,null,"",""]
[null,null,null,null,null,null,null,null,"",""]
[null,null,null,null,null,null,null,null,"",""]
[null,null,null,null,null,null,null,null,"",""]
[null,null,null,null,null,null,null,null,"",""]
[null,null,null,null,null,null,null,null,"",""]
[null,null,null,null,null,null,null,null,{"$f":"IF(G2052=\"\",\"\",(ROUND(DAYS360(G2052,H2052,1)/30,0) & \" MESES\"))","v":""},""]
[null,null,null,null,null,null,null,null,"",""]
[null,null,null,null,null,null,null,null,"",""]
[null,null,null,null,null,null,null,null,"",""]
[null,null,null,null,null,null,null,null,"",""]
[null,null,null,null,null,null,null,null,"",""]
[null,null,null,null,null,null,null,null,"",""]
[null,null,null,null,null,null,null,null,"",""]
[null,null,null,null,null,null,null,null,"",""]
[null,null,null,null,null,null,null,null,"",""]
[null,null,null,null,null,null,null,null,"",""]
[null,null,null,null,null,null,null,null,"",""]
[null,null,null,null,null,null,null,null,"",""]
[null,null,null,null,null,null,null,null,"",""]
[null,null,null,null,null,null,null,null,"",""]
[null,null,null,null,null,null,null,null,"",""]
[null,null,null,null,null,null,null,null,"",""]
[null,null,null,null,null,null,null,null,"",""]
[null,null,null,null,null,null,null,null,"",""]
[null,null,null,null,null,null,null,null,"",""]
[null,null,null,null,null,null,null,null,"",""]
[null,null,null,null,null,null,null,null,"",""]
[null,null,null,null,null,null,null,null,"",""]
[null,null,null,null,null,null,null,null,"",""]
[null,null,null,null,null,null,null,null,"",""]
[null,null,null,null,null,null,null,null,"",""]
[null,null,null,null,null,null,null,null,"",""]
[null,null,null,null,null,null,null,null,"",""]
[null,null,null,null,null,null,null,null,"",""]
[null,null,null,null,null,null,null,null,"",""]
[null,null,null,null,null,null,null,null,"",""]
[null,null,null,null,null,null,null,null,"",""]
[null,null,null,null,null,null,null,null,"",""]
[null,null,null,null,null,null,null,null,"",""]
[null,null,null,null,null,null,null,null,"",""]
[null,null,null,null,null,null,null,null,"",""]
[null,null,null,null,null,null,null,null,"",""]
[null,null,null,null,null,null,null,null,"",""]
[null,null,null,null,null,null,null,null,"",""]
[null,null,null,null,null,null,null,null,"",""]
[null,null,null,null,null,null,null,null,"",""]
[null,null,null,null,null,null,null,null,"",{"$f":"IF(G2093=\"\",\"\",IF(H2093=\"NO\",\"SIN FECHA\",IF(H2093=\"\",\"SIN FECHA\",IF(TODAY()>H2093,\"FINALIZADO\",IF(G2093<=TODAY(),\"VIGENTE\",\"SIN INICIAR\")))))","v":""}]
[null,null,null,null,null,null,null,null,"",""]
[null,null,null,null,null,null,null,null,"",""]
[null,null,null,null,null,null,null,null,"",""]
[null,null,null,null,null,null,null,null,"",""]
[null,null,null,null,null,null,null,null,"",""]
[null,null,null,null,null,null,null,null,"",""]
[null,null,null,null,null,null,null,null,"",""]
[null,null,null,null,null,null,null,null,"",""]
[null,null,null,null,null,null,null,null,"",""]
[null,null,null,null,null,null,null,null,"",""]
[null,null,null,null,null,null,null,null,"",""]
[null,null,null,null,null,null,null,null,"",""]
[null,null,null,null,null,null,null,null,"",""]
[null,null,null,null,null,null,null,null,"",""]
[null,null,null,null,null,null,null,null,"",""]
[null,null,null,null,null,null,null,null,"",""]
[null,null,null,null,null,null,null,null,"",""]
[null,null,null,null,null,null,null,null,"",""]
[null,null,null,null,null,null,null,null,"",""]
[null,null,null,null,null,null,null,null,"",""]
[null,null,null,null,null,null,null,null,"",""]
[null,null,null,null,null,null,null,null,"",""]
[null,null,null,null,null,null,null,null,{"$f":"IF(G2116=\"\",\"\",(ROUND(DAYS360(G2116,H2116,1)/30,0) & \" MESES\"))","v":""},""]
[null,null,null,null,null,null,null,null,"",""]
[null,null,null,null,null,null,null,null,"",""]
[null,null,null,null,null,null,null,null,"",""]
[null,null,null,null,null,null,null,null,"",""]
[null,null,null,null,null,null,null,null,"",""]
[null,null,null,null,null,null,null,null,"",""]
[null,null,null,null,null,null,null,null,"",""]
[null,null,null,null,null,null,null,null,"",""]
[null,null,null,null,null,null,null,null,"",""]
[null,null,null,null,null,null,null,null,"",""]
[null,null,null,null,null,null,null,null,"",""]
[null,null,null,null,null,null,null,null,"",""]
[null,null,null,null,null,null,null,null,"",""]
[null,null,null,null,null,null,null,null,"",""]
[null,null,null,null,null,null,null,null,"",""]
[null,null,null,null,null,null,null,null,"",""]
[null,null,null,null,null,null,null,null,"",""]
[null,null,null,null,null,null,null,null,"",""]
[null,null,null,null,null,null,null,null,"",""]
[null,null,null,null,null,null,null,null,"",""]
[null,null,null,null,null,null,null,null,"",""]
[null,null,null,null,null,null,null,null,"",""]
[null,null,null,null,null,null,null,null,"",""]
[null,null,null,null,null,null,null,null,"",""]
[null,null,null,null,null,null,null,null,"",""]
[null,null,null,null,null,null,null,null,"",""]
[null,null,null,null,null,null,null,null,"",""]
[null,null,null,null,null,null,null,null,"",""]
[null,null,null,null,null,null,null,null,"",""]
[null,null,null,null,null,null,null,null,"",""]
[null,null,null,null,null,null,null,null,"",""]
[null,null,null,null,null,null,null,null,"",""]
[null,null,null,null,null,null,null,null,"",""]
[null,null,null,null,null,null,null,null,"",""]
[null,null,null,null,null,null,null,null,"",""]
[null,null,null,null,null,null,null,null,"",""]
[null,null,null,null,null,null,null,null,"",""]
[null,null,null,null,null,null,null,null,"",""]
[null,null,null,null,null,null,null,null,"",""]
[null,null,null,null,null,null,null,null,"",""]
[null,null,null,null,null,null,null,null,"",{"$f":"IF(G2157=\"\",\"\",IF(H2157=\"NO\",\"SIN FECHA\",IF(H2157=\"\",\"SIN FECHA\",IF(TODAY()>H2157,\"FINALIZADO\",IF(G2157<=TODAY(),\"VIGENTE\",\"SIN INICIAR\")))))","v":""}]
[null,null,null,null,null,null,null,null,"",""]
[null,null,null,null,null,null,null,null,"",""]
[null,null,null,null,null,null,null,null,"",""]
[null,null,null,null,null,null,null,null,"",""]
[null,null,null,null,null,null,null,null,"",""]
[null,null,null,null,null,null,null,null,"",""]
[null,null,null,null,null,null,null,null,"",""]
[null,null,null,null,null,null,null,null,"",""]
[null,null,null,null,null,null,null,null,"",""]
[null,null,null,null,null,null,null,null,"",""]
[null,null,null,null,null,null,null,null,"",""]
[null,null,null,null,null,null,null,null,"",""]
[null,null,null,null,null,null,null,null,"",""]
[null,null,null,null,null,null,null,null,"",""]
[null,null,null,null,null,null,null,null,"",""]
[null,null,null,null,null,null,null,null,"",""]
[null,null,null,null,null,null,null,null,"",""]
[null,null,null,null,null,null,null,null,"",""]
[null,null,null,null,null,null,null,null,"",""]
[null,null,null,null,null,null,null,null,"",""]
[null,null,null,null,null,null,null,null,"",""]
[null,null,null,null,null,null,null,null,"",""]
[null,null,null,null,null,null,null,null,{"$f":"IF(G2180=\"\",\"\",(ROUND(DAYS360(G2180,H2180,1)/30,0) & \" MESES\"))","v":""},""]
[null,null,null,null,null,null,null,null,"",""]
[null,null,null,null,null,null,null,null,"",""]
[null,null,null,null,null,null,null,null,"",""]
[null,null,null,null,null,null,null,null,"",""]
[null,null,null,null,null,null,null,null,"",""]
[null,null,null,null,null,null,null,null,"",""]
[null,null,null,null,null,null,null,null,"",""]
[null,null,null,null,null,null,null,null,"",""]
[null,null,null,null,null,null,null,null,"",""]
[null,null,null,null,null,null,null,null,"",""]
[null,null,null,null,null,null,null,null,"",""]
[null,null,null,null,null,null,null,null,"",""]
[null,null,null,null,null,null,null,null,"",""]
[null,null,null,null,null,null,null,null,"",""]
[null,null,null,null,null,null,null,null,"",""]
[null,null,null,null,null,null,null,null,"",""]
[null,null,null,null,null,null,null,null,"",""]
[null,null,null,null,null,null,null,null,"",""]
[null,null,null,null,null,null,null,null,"",""]
[null,null,null,null,null,null,null,null,"",""]
[null,null,null,null,null,null,null,null,"",""]
[null,null,null,null,null,null,null,null,"",""]
[null,null,null,null,null,null,null,null,"",""]
[null,null,null,null,null,null,null,null,"",""]
[null,null,null,null,null,null,null,null,"",""]
[null,null,null,null,null,null,null,null,"",""]
[null,null,null,null,null,null,null,null,"",""]
[null,null,null,null,null,null,null,null,"",""]
[null,null,null,null,null,null,null,null,"",""]
[null,null,null,null,null,null,null,null,"",""]
[null,null,null,null,null,null,null,null,"",""]
[null,null,null,null,null,null,null,null,"",""]
[null,null,null,null,null,null,null,null,"",""]
[null,null,null,null,null,null,null,null,"",""]
[null,null,null,null,null,null,null,null,"",""]
[null,null,null,null,null,null,null,null,"",""]
[null,null,null,null,null,null,null,null,"",""]
[null,null,null,null,null,null,null,null,"",""]
[null,null,null,null,null,null,null,null,"",""]
[null,null,null,null,null,null,null,null,"",""]
[null,null,null,null,null,null,null,null,"",{"$f":"IF(G2221=\"\",\"\",IF(H2221=\"NO\",\"SIN FECHA\",IF(H2221=\"\",\"SIN FECHA\",IF(TODAY()>H2221,\"FINALIZADO\",IF(G2221<=TODAY(),\"VIGENTE\",\"SIN INICIAR\")))))","v":""}]
[null,null,null,null,null,null,null,null,"",""]
[null,null,null,null,null,null,null,null,"",""]
[null,null,null,null,null,null,null,null,"",""]
[null,null,null,null,null,null,null,null,"",""]
[null,null,null,null,null,null,null,null,"",""]
[null,null,null,null,null,null,null,null,"",""]
[null,null,null,null,null,null,null,null,"",""]
[null,null,null,null,null,null,null,null,"",""]
[null,null,null,null,null,null,null,null,"",""]
[null,null,null,null,null,null,null,null,"",""]
[null,null,null,null,null,null,null,null,"",""]
[null,null,null,null,null,null,null,null,"",""]
[null,null,null,null,null,null,null,null,"",""]
[null,null,null,null,null,null,null,null,"",""]
[null,null,null,null,null,null,null,null,"",""]
[null,null,null,null,null,null,null,null,"",""]
[null,null,null,null,null,null,null,null,"",""]
[null,null,null,null,null,null,null,null,"",""]
[null,null,null,null,null,null,null,null,"",""]
[null,null,null,null,null,null,null,null,"",""]
[null,null,null,null,null,null,null,null,"",""]
[null,null,null,null,null,null,null,null,"",""]
[null,null,null,null,null,null,null,null,{"$f":"IF(G2244=\"\",\"\",(ROUND(DAYS360(G2244,H2244,1)/30,0) & \" MESES\"))","v":""},""]
[null,null,null,null,null,null,null,null,"",""]
[null,null,null,null,null,null,null,null,"",""]
[null,null,null,null,null,null,null,null,"",""]
[null,null,null,null,null,null,null,null,"",""]
[null,null,null,null,null,null,null,null,"",""]
[null,null,null,null,null,null,null,null,"",""]
[null,null,null,null,null,null,null,null,"",""]
[null,null,null,null,null,null,null,null,"",""]
[null,null,null,null,null,null,null,null,"",""]
[null,null,null,null,null,null,null,null,"",""]
[null,null,null,null,null,null,null,null,"",""]
[null,null,null,null,null,null,null,null,"",""]
[null,null,null,null,null,null,null,null,"",""]
[null,null,null,null,null,null,null,null,"",""]
[null,null,null,null,null,null,null,null,"",""]
[null,null,null,null,null,null,null,null,"",""]
[null,null,null,null,null,null,null,null,"",""]
[null,null,null,null,null,null,null,null,"",""]
[null,null,null,null,null,null,null,null,"",""]
[null,null,null,null,null,null,null,null,"",""]
[null,null,null,null,null,null,null,null,"",""]
[null,null,null,null,null,null,null,null,"",""]
[null,null,null,null,null,null,null,null,"",""]
[null,null,null,null,null,null,null,null,"",""]
[null,null,null,null,null,null,null,null,"",""]
[null,null,null,null,null,null,null,null,"",""]
[null,null,null,null,null,null,null,null,"",""]
[null,null,null,null,null,null,null,null,"",""]
[null,null,null,null,null,null,null,null,"",""]
[null,null,null,null,null,null,null,null,"",""]
[null,null,null,null,null,null,null,null,"",""]
[null,null,null,null,null,null,null,null,"",""]
[null,null,null,null,null,null,null,null,"",""]

{"sheet":"Conf","index":1,"n_rows":9,"n_cols":9,"rows_kept":9,"cut":false,"hidden":true,"merged":[]}
[]
[null,"MODALIDAD","FACULTAD","SI/NO","TIPO DE PROYECTO","VINCULO","TIPO MOVIMIENTO","MEDIO","ESTADO"]
[null,"MEDIANA CUANTIA","CIENCIAS JURIDICAS Y POLITICAS","SI","INVESTIGACION","DOCENTE DE TIEMPO COMPLETO","ENTREGA INFORME AVANCE","CORREO ELECTRÓNICO","ACEPTADO"]
[null,"MENOR CUANTIA","CIENCIAS SOCIALES Y HUMANAS","NO",null,"DOCENTE OCASIONAL","ENTREGA INFORME FINAL","OFICIO - MEMORANDO","NO ACEPTADO"]
[null,"TRABAJOS DE GRADO","CIENCIAS EXACTAS Y NATURALES",null,null,"DOCENTE DE MEDIO TIEMPO","PRORROGA INFORME AVANCE",null,"PENDIENTE - COCEIN"]
[null,"SEMILLERO","ECONOMIA Y ADMINISTRACION",null,null,"DOCENTE CATEDRATICO","PRORROGA INFORME FINAL"]
[null,null,"EDUCACION",null,null,"DOCENTE DE PLANTA"]
[null,null,"INGENIERIA",null,null,"ESTUDIANTE"]
[null,null,"SALUD",null,null,"EGRESADO"]